Workbook

Sheet Introduction
A1: Greater London Authority - Circular Economy Statement template
A3: How to use this spreadsheet
A4: This template should be used by planning applicants to fulfil the requirements of the Mayor's Circular Economy (CE) Statement policy set out in London Plan Policy SI 7 'Reducing waste and supporting the Circular Economy’. Before completing and submitting this spreadsheet to the GLA, applicants should read the CE statement guidance: https://www.london.gov.uk/what-we-do/planning/implementing-london-plan/london-plan-guidance-and-spgs/circular-economy-statement-guidance-consultation-draft
A6: Applicant are required to submit CE statement information to the GLA at the following three stages: pre-applicaton, outline/detailed planning submission and post-construction. Separate tabs are provided in this spreadsheet for each stage. An outline of the information required at each stage and how to submit it is provided below. Please enter information to the light yellow-coloured cells only, do not enter information in the grey cells as these will be automatically calculated. The light green-coloured cells should be completed to achieve 'pioneering' status.
A8: 1. Pre-application stage
A9: At pre-application stage, applicants are required to complete the pre-application information tab of this template which requires applicants to confirm details about the site and to provide details of the circular economy design approaches that are informing the existing and new development (including by building layer for the latter). All tables should be completed. This should be submitted to the GLA along with all other pre-application material.
A11: 2. Outline/detailed planning submission stage
A12: At this stage, applicants are required to complete the outline or detailed planning stage tab of this template (whichever is relevant) and submit it to the GLA along with their planning application. Applicants are required to complete all tables, including the Bill of Materials and Recycling and Waste Reporting tables. Please enter information to the light yellow-coloured cells only, do not enter information in the grey cells as these will be automatically calculated. The light green-coloured cells should be completed to achieve 'pioneering' status.
A14: 3. Post-construction stage
A15: At the final stage of the CE statement process, applicants should complete the post-construction tab of this template and submit it to the GLA within three months of practical completion. This will require an update of the information provided at planning submission stage and for the actual figures to be reported using actual material quantities during construction. Information should be submitted to: circulareconomystatements@london.gov.uk
A17: Queries
A18: Any queries or feedback on this template should be submitted to:
A19: circulareconomystatements@london.gov.uk
A22: Requirement by application stage (see relevant section of guidance for more information) | B22: Pre-application stage (suggested) | C22: Outline application[1] | D22: Full application / reserved matters[2] | E22: Post-construction | F22: Checklist | G22: Information Reference (Please indicate whether this has been included in the report to accompany this template or as a separate submission)
A23: CE targets (see section 4.2) | B23: Encouraged | C23: Yes | D23: Yes | E23: Yes (Performance reported) | G23: Evidence in CES template spreadsheet
A24: CE design approaches (see sections 2.3 - 2.5 and 4.3) | B24: Yes | C24: Yes | D24: Yes | E24: N/A | G24: Evidence in CES template spreadsheet
A25: CE design principles (see sections 2.1, 4.4 - 4.5) | B25: Yes | C25: No | D25: No | E25: No | G25: Evidence in CES template spreadsheet
A26: CE design principles by building layer (see sections 4.5) | B26: No | C26: Yes | D26: Yes | E26: No | G26: Evidence in CES template spreadsheet
A27: Pre-redevelopment audit (see section 4.6) | B27: Encouraged | C27: Yes | D27: Yes | E27: N/A
A28: Pre-demolition audit (see section 4.6) | B28: Encouraged | C28: Yes | D28: Yes | E28: N/A
A29: Bill of materials (including calculations – see section 4.7) | B29: No | C29: Yes (Estimated) | D29: Yes (Estimated) | E29: Yes (Actual) | G29: Evidence in CES template spreadsheet
A30: End of life strategy (see section 4.7) | B30: No | C30: No | D30: Yes | E30: Encouraged
A31: Operational waste management plan (see section 4.8) | B31: No | C31: No | D31: Yes | E31: Encouraged
A32: Recycling and waste reporting (see Section 4.9) | B32: No | C32: Yes (Estimated) | D32: Yes (Estimated) | E32: Yes (Actual) | G32: Evidence in CES template spreadsheet
A33: Lessons learnt and key achievements (see section 4.10) | B33: N/A | C33: N/A | D33: N/A | E33: Yes | G33: Evidence in CES template spreadsheet
A35: [1] Also applicable to the outline and detailed part of hybrid applications.
A36: [2] Also applicable to the outline and detailed part of hybrid applications.

Sheet Pre-App Stage
A4: Pre-Application Stage - Circular Economy Statement
D6: Project Details
C7: Project name
C8: Planning application reference number (if applicable)
C9: Applicant
C10: London Borough
C11: Brief description of the project
C12: Author/s
C13: Date of assessment
C14: Number of Use Types
C15: Use Class / Type | D15: Floor Area by use type (m2)
C16: Use Class / Type 1 | D16: Use Class / Type 1 GIA
C17: Use Class / Type 2 | D17: Use Class / Type 2 GIA
C18: Use Class / Type 3 | D18: Use Class / Type 3 GIA
C19: Use Class / Type 4 | D19: Use Class / Type 4 GIA
C20: Use Class / Type 5 | D20: Use Class / Type 5 GIA
C21: Use Class / Type 6 | D21: Use Class / Type 6 GIA
C22: Use Class / Type 7 | D22: Use Class / Type 7 GIA
C23: Use Class / Type 8 | D23: Use Class / Type 8 GIA
C24: Use Class / Type 9 | D24: Use Class / Type 9 GIA
C25: Use Class / Type 10 | D25: Use Class / Type 10 GIA
C26: Use Class / Type 11 | D26: Use Class / Type 11 GIA
C27: Use Class / Type 12 | D27: Use Class / Type 12 GIA
C28: Use Class / Type 13 | D28: Use Class / Type 13 GIA
C29: Use Class / Type 14 | D29: Use Class / Type 14 GIA
C30: Use Class / Type 15 | D30: Use Class / Type 15 GIA
C31: Overall GIA (m2) | D31: =SUM(D16:D30) -> 0
B34: Circular Economy Design Approaches
B35: Circular Economy Design Approaches for Existing Structures / Buildings | D35: Applicant Response
B36: Is there an existing building on the site?
B37: Is it technically feasible to retain the building(s) in whole or in part?
B38: Are there any building materials or elements available on site that can be used?
B39: Is the existing building, or parts of the building, suited to the requirements for the site?
B40: Is it technically feasible to recover the 'residual value' of the buildings elements or materials?
B41: The preferred strategy is: | D41: NEW BUILDING
B42: The preferred strategy is: | D42: RETAIN and RETROFIT
B43: The preferred strategy is: | D43: PARTIAL RETENTION and REFURBISHMENT
B44: The preferred strategy is: | D44: DISASSEMBLE/DECONSTRUCT AND REUSE
B45: The preferred strategy is: | D45: DEMOLISH/DECONSTRUCT AND RECYCLE
B46: Circular Economy Design Approach | C46: Phase / Building / Area / Layer | D46: Strategic Response
B47: Retain and Retrofit
B48: Partial Retention and Refurbishment
B49: Disassemble and Reuse
B50: Demolish and Recycle
B51: Circular Economy Design Approaches for New Buildings, Infrastructure and Layers Over the Lifetime of the Development | D51: Applicant Response
B52: Is the whole building designed to have a short life on its current site? (e.g. less than 10 yrs)
B53: Is there likely to be a need for building of a similar size (etc.) in different locations in the future?
B54: Is it foreseeable that the building will need to change use/function within its design life?
B55: The preferred strategy is: | D55: Design for BUILDING RELOCATION
B56: The preferred strategy is: | D56: Design for COMPONENT / MATERIAL REUSE
B57: The preferred strategy is: | D57: Design for ADAPTABILITY
B58: All developments should apply the 6 Circular Economy principles, including: | D58: Designing for DISASSEMBLY and ADAPTABILITY, MATERIAL REUSE ON-SITE and/or RECYCLING should be maximised
B59: Circular Economy Design Approach | C59: Phase / Building / Area / Layer | D59: Strategic Response
B60: Building relocation
B61: Component or material reuse
B62: Adaptability
B63: Flexibility
B64: Replaceability
B65: Disassembly
B66: Longevity
B70: Circular Economy Design Principles
B71: Design Principle | E71: Phase / Building / Area / Layer | G71: Design Response
B72: Designing out waste | D72: Module A - Product Sourcing and Construction Stage
D73: Module B - In-Use Stage
D74: Module C - End-of-Life Stage
D75: Module D - Benefits and Loads Beyond the System Boundary
B76: Designing for longevity
B77: Designing for adaptability or flexibility
B78: Designing for disassembly
B79: Using systems, elements or materials that can be re-used and recycled
B82: Circular Economy Targets
B83: Circular economy targets for existing and new development | D83: Policy Requirement | E83: Target Aiming For (%) | F83: Policy Met?
B84: Demolition waste materials (non-hazardous) | D84: Minimum of 95% diverted from landfill for reuse, recycling or recovery. | F84: =IF(ISNUMBER(E84),IF(E84=95%,"Yes",IF(E84>95%,"Exceeds Policy","No")),"") -> 
B85: Excavation waste materials | D85: Minimum of 95% diverted from landfill for beneficial reuse. | F85: =IF(ISNUMBER(E85),IF(E85=95%,"Yes",IF(E85>95%,"Exceeds Policy","No")),"") -> 
B86: Construction waste materials | D86: Minimum of 95% diverted from landfill for reuse, recycling or recovery. | F86: =IF(ISNUMBER(E86),IF(E86=95%,"Yes",IF(E86>95%,"Exceeds Policy","No")),"") -> 
B87: Municipal waste | D87: Minimum 65% recycling rate by 2030. | F87: =IF(ISNUMBER(E87),IF(E87=65%,"Yes",IF(E87>65%,"Exceeds Policy","No")),"") -> 
B88: Recycled content | D88: Minimum 20% of the building material elements to be comprised of recycled or reused content. | F88: =IF(ISNUMBER(E88),IF(E88=20%,"Yes",IF(E88>20%,"Exceeds Policy","No")),"") -> 

Sheet Outline Application Stage
A4: Outline Application Stage - Circular Economy Statement
D6: Project Details
C7: Project name
C8: Planning application reference number (if applicable)
C9: Applicant
C10: London Borough
C11: Brief description of the project
C12: Author/s
C13: Date of assessment
C14: Number of Use Types
C15: Use Class / Type | D15: Floor Area by use type (m2)
C16: Use Class / Type 1 | D16: Use Class / Type 1 GIA
C17: Use Class / Type 2 | D17: Use Class / Type 2 GIA
C18: Use Class / Type 3 | D18: Use Class / Type 3 GIA
C19: Use Class / Type 4 | D19: Use Class / Type 4 GIA
C20: Use Class / Type 5 | D20: Use Class / Type 5 GIA
C21: Use Class / Type 6 | D21: Use Class / Type 6 GIA
C22: Use Class / Type 7 | D22: Use Class / Type 7 GIA
C23: Use Class / Type 8 | D23: Use Class / Type 8 GIA
C24: Use Class / Type 9 | D24: Use Class / Type 9 GIA
C25: Use Class / Type 10 | D25: Use Class / Type 10 GIA
C26: Use Class / Type 11 | D26: Use Class / Type 11 GIA
C27: Use Class / Type 12 | D27: Use Class / Type 12 GIA
C28: Use Class / Type 13 | D28: Use Class / Type 13 GIA
C29: Use Class / Type 14 | D29: Use Class / Type 14 GIA
C30: Use Class / Type 15 | D30: Use Class / Type 15 GIA
C31: Overall GIA (m2) | D31: =SUM(D16:D30) -> 0
B34: Circular Economy Design Approaches
B35: Circular Economy Design Approaches for Existing Structures / Buildings | D35: Applicant Response
B36: Is there an existing building on the site?
B37: Is it technically feasible to retain the building(s) in whole or in part?
B38: Are there any building materials or elements available on site that can be used?
B39: Is the existing building, or parts of the building, suited to the requirements for the site?
B40: Is it technically feasible to recover the 'residual value' of the buildings elements or materials?
B41: The preferred strategy is: | D41: NEW BUILDING
B42: The preferred strategy is: | D42: RETAIN and RETROFIT
B43: The preferred strategy is: | D43: PARTIAL RETENTION and REFURBISHMENT
B44: The preferred strategy is: | D44: DISASSEMBLE/DECONSTRUCT AND REUSE
B45: The preferred strategy is: | D45: DEMOLISH/DECONSTRUCT AND RECYCLE
B46: Circular Economy Design Approach | C46: Phase/Building/Area/Layer | D46: Strategic Response
B47: Retain and Retrofit
B48: Partial Retention and Refurbishment
B49: Disassemble and Reuse
B50: Demolish and Recycle
B51: Circular Economy Design Approaches for New Buildings, Infrastructure and Layers Over the Lifetime of the Development | D51: Applicant Response
B52: Is the whole building designed to have a short life on its current site? (e.g. less than 10 yrs)
B53: Is there likely to be a need for building of a similar size (etc.) in different locations in the future?
B54: Is it foreseeable that the building will need to change use/function within its design life?
B55: The preferred strategy is: | D55: Design for BUILDING RELOCATION
B56: The preferred strategy is: | D56: Design for COMPONENT / MATERIAL REUSE
B57: The preferred strategy is: | D57: Design for ADAPTABILITY
B58: All developments should apply the 6 Circular Economy principles, including: | D58: Designing for DISASSEMBLY and ADAPTABILITY, MATERIAL REUSE ON-SITE and/or RECYCLING should be maximised
B59: Circular Economy Design Approach | C59: Phase/Building/Area/Layer | D59: Strategic Response
B60: Building relocation
B61: Component or material reuse
B62: Adaptability
B63: Flexibility
B64: Replaceability
B65: Disassembly
B66: Longevity
B69: Circular Economy Design Principles by Building Layer
B70: The Circular Economy Design Principles by Building Layer table should consider where the Applicant seeks to go beyond standard practice. If there are multiple phases / buildings / areas with different measures / strategies, please specify these separately within the table below.
E71: Building Layer | M71: Summary | N71: Challenges | O71: Actions & Counter-Actions, Who and When | P71: Plan to Prove and Quantify
E72: Site | F72: Substructure | G72: Superstructure | H72: Shell/Skin | I72: Services | J72: Space | K72: Stuff | L72: Construction Stuff
B73: 1. Is it likely the layer (or components within it) will need to be moved or otherwise modified within 5-15 years, e.g. due to changing use patterns or user requirements? | E73: N/A | L73: N/A
B74: 2. Is it likely the layer (or components within it) will need to be changed, upgraded or replaced within 5-15 years, e.g. for improved performance, aesthetics | E74: N/A | L74: N/A
B75: The preferred strategy is: | E75: - | F75: =IF(F73="Yes","Design for FLEXIBILITY",IF(F74="Yes","Design for REPLACEABILITY",IF(AND(F73="No",F74="No"),"Design for ADAPTABILITY",""))) ->  | G75: =IF(G73="Yes","Design for FLEXIBILITY",IF(G74="Yes","Design for REPLACEABILITY",IF(AND(G73="No",G74="No"),"Design for ADAPTABILITY",""))) ->  | L75: -
B76: Design Principles | E76: All developments should apply the 6 circular economy principles, including designing for DISASSEMBLY and ADAPTABILITY, MATERIAL REUSE ON-SITE and/or RECYCLING should be maximised.
B77: Designing out waste | D77: Module A - Product Sourcing and Construction Stage
D78: Module B - In-Use Stage
D79: Module C - End-of-Life Stage
D80: Module D - Benefits and Loads Beyond the System Boundary
B81: Designing for longevity
B82: Designing for adaptability or flexibility
B83: Designing for disassembly
B84: Using systems, elements or materials that can be re-used and recycled
B87: Bill of Materials
B88: Please click the + symbol to the left hand side of the Bill of Materials table to view or hide the input rows for each Building Element Category. The rows for substructure and frame have been unhidden to highlight this. A fixed number of rows has been provided for each Building Element Category based on a sub-set of typical WLCA submissions. Should the number of rows provided not be sufficient to allow input of all materials for a given Building Element Category, Applicants should prioritise the inclusion of the materials with the highest quantity.
C89: BUILDING ELEMENT CATEGORY - LEVEL 1 (based on the RICS New Rules of Measurement (NRM) classification system level 2 sub-elements https://www.rics.org/globalassets/rics-website/media/products/data-products/bcis-construction/bcis-elemental-standard-form-cost-analysis-4th-nrm-edition-2012.pdf) | E89: PRODUCT AND CONSTRUCTION STAGE (MODULE A) | M89: USE STAGE (MODULE B) | R89: END OF LIFE STAGE (MODULE C) | W89: BENEFITS BEYOND THE SYSTEM BOUNDARY (MODULE D)
C90: Building Element Category | E90: Material Type | F90: Material quantity (Module A) (kg) | G90: Material intensity (Module A) (kg/m2 GIA) | H90: Performance Indicator (LPG Appendix 1) | I90: Construction Waste Factor (Module A) | J90: Construction Waste (Module A) (kg) | K90: Recycled Content by mass (kg) | L90: Recycled Content by value (%) | M90: Expected Lifespan (years) | N90: Number of Replacements (over assumed 60-year period) | O90: Repair and Replacement quantities of materials (Module B) (kg) | P90: Construction Waste Factor (Module B) | Q90: Construction Waste (Module B) (kg) | R90: Design for Disassembly | S90: Assumed End of Life Scenario (Description) | T90: % Reusing | U90: % Recycling | V90: % Landfill | W90: Estimated reusable materials (kg) | X90: Estimated reusable materials intensity (kg/m2 GIA) | Y90: Estimated recyclable materials (kg) | Z90: Estimated recyclable materials intensity (kg/m2 GIA)
B91: 0.1 | C91: Demolition: Toxic/Hazardous/Contaminated Material Treatment | E91: - | F91: =SUM(F92:F106) -> 0 | G91: =IF(AND(F91<>0,$D$31<>0),F91/$D$31,0) -> 0 | H91: - | I91: - | J91: =SUM(J92:J106) -> 0 | K91: - | L91: - | M91: - | N91: - | O91: =SUM(O92:O106) -> 0 | P91: - | Q91: =SUM(Q92:Q106) -> 0 | R91: - | S91: - | T91: =IF(W91<>0,W91/($F$91+$O$91),0) -> 0 | U91: =IF(Y91<>0,Y91/($F$91+$O$91),0) -> 0 | V91: =1-T91-U91 -> 1 | W91: =SUM(W92:W106) -> 0 | X91: =IF(AND(W91<>0,$D$31<>0),W91/$D$31,0) -> 0 | Y91: =SUM(Y92:Y106) -> 0 | Z91: =IF(AND(Y91<>0,$D$31<>0),Y91/$D$31,0) -> 0
B92: 0.1 | C92: Demolition: Toxic/Hazardous/Contaminated Material Treatment | G92: =IF(AND(F92<>0,$D$31<>0),F92/$D$31,0) -> 0 | H92: - | I92: 0 | J92: =F92*I92 -> 0 | N92: =IF(M92<>0,INT(59/M92),0) -> 0 | O92: =F92*N92 -> 0 | P92: 0 | Q92: =O92*P92 -> 0 | T92: 0 | U92: 0 | V92: =1-T92-U92 -> 1 | W92: =T92*(F92+O92) -> 0 | X92: =IF(AND(W92<>0,$D$31<>0),W92/$D$31,0) -> 0 | Y92: =U92*(F92+O92) -> 0 | Z92: =IF(AND(Y92<>0,$D$31<>0),Y92/$D$31,0) -> 0
G93: =IF(AND(F93<>0,$D$31<>0),F93/$D$31,0) -> 0 | H93: - | I93: 0 | J93: =F93*I93 -> 0 | N93: =IF(M93<>0,INT(59/M93),0) -> 0 | O93: =F93*N93 -> 0 | P93: 0 | Q93: =O93*P93 -> 0 | T93: 0 | U93: 0 | V93: =1-T93-U93 -> 1 | W93: =T93*(F93+O93) -> 0 | X93: =IF(AND(W93<>0,$D$31<>0),W93/$D$31,0) -> 0 | Y93: =U93*(F93+O93) -> 0 | Z93: 0
G94: 0 | H94: - | I94: 0 | J94: 0 | N94: 0 | O94: 0 | P94: 0 | Q94: 0 | T94: 0 | U94: 0 | V94: 1 | W94: 0 | X94: 0 | Y94: 0 | Z94: 0
G95: 0 | H95: - | I95: 0 | J95: 0 | N95: 0 | O95: 0 | P95: 0 | Q95: 0 | T95: 0 | U95: 0 | V95: 1 | W95: 0 | X95: 0 | Y95: 0 | Z95: 0
G96: 0 | H96: - | I96: 0 | J96: 0 | N96: 0 | O96: 0 | P96: 0 | Q96: 0 | T96: 0 | U96: 0 | V96: 1 | W96: 0 | X96: 0 | Y96: 0 | Z96: 0
G97: 0 | H97: - | I97: 0 | J97: 0 | N97: 0 | O97: 0 | P97: 0 | Q97: 0 | T97: 0 | U97: 0 | V97: 1 | W97: 0 | X97: 0 | Y97: 0 | Z97: 0
G98: 0 | H98: - | I98: 0 | J98: 0 | N98: 0 | O98: 0 | P98: 0 | Q98: 0 | T98: 0 | U98: 0 | V98: 1 | W98: 0 | X98: 0 | Y98: 0 | Z98: 0
G99: 0 | H99: - | I99: 0 | J99: 0 | N99: 0 | O99: 0 | P99: 0 | Q99: 0 | T99: 0 | U99: 0 | V99: 1 | W99: 0 | X99: 0 | Y99: 0 | Z99: 0
G100: 0 | H100: - | I100: 0 | J100: 0 | N100: 0 | O100: 0 | P100: 0 | Q100: 0 | T100: 0 | U100: 0 | V100: 1 | W100: 0 | X100: 0 | Y100: 0 | Z100: 0
G101: 0 | H101: - | I101: 0 | J101: 0 | N101: 0 | O101: 0 | P101: 0 | Q101: 0 | T101: 0 | U101: 0 | V101: 1 | W101: 0 | X101: 0 | Y101: 0 | Z101: 0
G102: 0 | H102: - | I102: 0 | J102: 0 | N102: 0 | O102: 0 | P102: 0 | Q102: 0 | T102: 0 | U102: 0 | V102: 1 | W102: 0 | X102: 0 | Y102: 0 | Z102: 0
G103: 0 | H103: - | I103: 0 | J103: 0 | N103: 0 | O103: 0 | P103: 0 | Q103: 0 | T103: 0 | U103: 0 | V103: 1 | W103: 0 | X103: 0 | Y103: 0 | Z103: 0
G104: 0 | H104: - | I104: 0 | J104: 0 | N104: 0 | O104: 0 | P104: 0 | Q104: 0 | T104: 0 | U104: 0 | V104: 1 | W104: 0 | X104: 0 | Y104: 0 | Z104: 0
G105: 0 | H105: - | I105: 0 | J105: 0 | N105: 0 | O105: 0 | P105: 0 | Q105: 0 | T105: 0 | U105: 0 | V105: 1 | W105: 0 | X105: 0 | Y105: 0 | Z105: 0
G106: 0 | H106: - | I106: 0 | J106: 0 | N106: 0 | O106: 0 | P106: 0 | Q106: 0 | T106: 0 | U106: 0 | V106: 1 | W106: 0 | X106: 0 | Y106: 0 | Z106: 0
B107: 0.2 | C107: Major Demolition Works | E107: - | F107: =SUM(F108:F122) -> 0 | G107: =IF(AND(F107<>0,$D$31<>0),F107/$D$31,0) -> 0 | H107: - | I107: - | J107: =SUM(J108:J122) -> 0 | K107: - | L107: - | M107: - | N107: - | O107: =SUM(O108:O122) -> 0 | P107: - | Q107: =SUM(Q108:Q122) -> 0 | R107: - | S107: - | T107: =IF(W107<>0,W107/($F$107+$O$107),0) -> 0 | U107: =IF(Y107<>0,Y107/($F$107+$O$107),0) -> 0 | V107: =1-T107-U107 -> 1 | W107: =SUM(W108:W122) -> 0 | X107: 0 | Y107: =SUM(Y108:Y122) -> 0 | Z107: 0
B108: 0.2 | C108: Major Demolition Works | G108: =IF(AND(F108<>0,$D$31<>0),F108/$D$31,0) -> 0 | H108: - | I108: 0 | J108: =I108*F108 -> 0 | N108: =IF(M108<>0,INT(59/M108),0) -> 0 | O108: =F108*N108 -> 0 | P108: 0 | Q108: =O108*P108 -> 0 | T108: 0 | U108: 0 | V108: 1 | W108: 0 | X108: 0 | Y108: 0 | Z108: 0
G109: =IF(AND(F109<>0,$D$31<>0),F109/$D$31,0) -> 0 | H109: - | I109: 0 | J109: 0 | N109: =IF(M109<>0,INT(59/M109),0) -> 0 | O109: =F109*N109 -> 0 | P109: 0 | Q109: =O109*P109 -> 0 | T109: 0 | U109: 0 | V109: 1 | W109: 0 | X109: 0 | Y109: 0 | Z109: 0
G110: =IF(AND(F110<>0,$D$31<>0),F110/$D$31,0) -> 0 | H110: - | I110: 0 | J110: 0 | N110: 0 | O110: 0 | P110: 0 | Q110: 0 | T110: 0 | U110: 0 | V110: 1 | W110: 0 | X110: 0 | Y110: 0 | Z110: 0
G111: 0 | H111: - | I111: 0 | J111: 0 | N111: 0 | O111: 0 | P111: 0 | Q111: 0 | T111: 0 | U111: 0 | V111: 1 | W111: 0 | X111: 0 | Y111: 0 | Z111: 0
G112: 0 | H112: - | I112: 0 | J112: 0 | N112: 0 | O112: 0 | P112: 0 | Q112: 0 | T112: 0 | U112: 0 | V112: 1 | W112: 0 | X112: 0 | Y112: 0 | Z112: 0
G113: 0 | H113: - | I113: 0 | J113: 0 | N113: 0 | O113: 0 | P113: 0 | Q113: 0 | T113: 0 | U113: 0 | V113: 1 | W113: 0 | X113: 0 | Y113: 0 | Z113: 0
G114: 0 | H114: - | I114: 0 | J114: 0 | N114: 0 | O114: 0 | P114: 0 | Q114: 0 | T114: 0 | U114: 0 | V114: 1 | W114: 0 | X114: 0 | Y114: 0 | Z114: 0
G115: 0 | H115: - | I115: 0 | J115: 0 | N115: 0 | O115: 0 | P115: 0 | Q115: 0 | T115: 0 | U115: 0 | V115: 1 | W115: 0 | X115: 0 | Y115: 0 | Z115: 0
G116: 0 | H116: - | I116: 0 | J116: 0 | N116: 0 | O116: 0 | P116: 0 | Q116: 0 | T116: 0 | U116: 0 | V116: 1 | W116: 0 | X116: 0 | Y116: 0 | Z116: 0
G117: 0 | H117: - | I117: 0 | J117: 0 | N117: 0 | O117: 0 | P117: 0 | Q117: 0 | T117: 0 | U117: 0 | V117: 1 | W117: 0 | X117: 0 | Y117: 0 | Z117: 0
G118: 0 | H118: - | I118: 0 | J118: 0 | N118: 0 | O118: 0 | P118: 0 | Q118: 0 | T118: 0 | U118: 0 | V118: 1 | W118: 0 | X118: 0 | Y118: 0 | Z118: 0
G119: 0 | H119: - | I119: 0 | J119: 0 | N119: 0 | O119: 0 | P119: 0 | Q119: 0 | T119: 0 | U119: 0 | V119: 1 | W119: 0 | X119: 0 | Y119: 0 | Z119: 0
G120: 0 | H120: - | I120: 0 | J120: 0 | N120: 0 | O120: 0 | P120: 0 | Q120: 0 | T120: 0 | U120: 0 | V120: 1 | W120: 0 | X120: 0 | Y120: 0 | Z120: 0
G121: 0 | H121: - | I121: 0 | J121: 0 | N121: 0 | O121: 0 | P121: 0 | Q121: 0 | T121: 0 | U121: 0 | V121: 1 | W121: 0 | X121: 0 | Y121: 0 | Z121: 0
G122: 0 | H122: - | I122: 0 | J122: 0 | N122: 0 | O122: 0 | P122: 0 | Q122: 0 | T122: 0 | U122: 0 | V122: 1 | W122: 0 | X122: 0 | Y122: 0 | Z122: 0
B123: 0.3 | C123: Temporary Support to Adjacent Structures | E123: - | F123: =SUM(F124:F138) -> 0 | G123: =IF(AND(F123<>0,$D$31<>0),F123/$D$31,0) -> 0 | H123: - | I123: - | J123: =SUM(J124:J138) -> 0 | K123: - | L123: - | M123: - | N123: - | O123: =SUM(O124:O138) -> 0 | P123: - | Q123: =SUM(Q124:Q138) -> 0 | R123: - | S123: - | T123: =IF(W123<>0,W123/($F$123+$O$123),0) -> 0 | U123: =IF(Y123<>0,Y123/($F$123+$O$123),0) -> 0 | V123: 1 | W123: =SUM(W124:W138) -> 0 | X123: 0 | Y123: =SUM(Y124:Y138) -> 0 | Z123: 0
B124: 0.3 | C124: Temporary Support to Adjacent Structures | G124: =IF(AND(F124<>0,$D$31<>0),F124/$D$31,0) -> 0 | H124: - | I124: 0 | J124: =I124*F124 -> 0 | N124: =IF(M124<>0,INT(59/M124),0) -> 0 | O124: =F124*N124 -> 0 | P124: 0 | Q124: =O124*P124 -> 0 | T124: 0 | U124: 0 | V124: 1 | W124: 0 | X124: 0 | Y124: 0 | Z124: 0
G125: =IF(AND(F125<>0,$D$31<>0),F125/$D$31,0) -> 0 | H125: - | I125: 0 | J125: 0 | N125: =IF(M125<>0,INT(59/M125),0) -> 0 | O125: =F125*N125 -> 0 | P125: 0 | Q125: =O125*P125 -> 0 | T125: 0 | U125: 0 | V125: 1 | W125: 0 | X125: 0 | Y125: 0 | Z125: 0
G126: =IF(AND(F126<>0,$D$31<>0),F126/$D$31,0) -> 0 | H126: - | I126: 0 | J126: 0 | N126: 0 | O126: 0 | P126: 0 | Q126: 0 | T126: 0 | U126: 0 | V126: 1 | W126: 0 | X126: 0 | Y126: 0 | Z126: 0
G127: 0 | H127: - | I127: 0 | J127: 0 | N127: 0 | O127: 0 | P127: 0 | Q127: 0 | T127: 0 | U127: 0 | V127: 1 | W127: 0 | X127: 0 | Y127: 0 | Z127: 0
G128: 0 | H128: - | I128: 0 | J128: 0 | N128: 0 | O128: 0 | P128: 0 | Q128: 0 | T128: 0 | U128: 0 | V128: 1 | W128: 0 | X128: 0 | Y128: 0 | Z128: 0
G129: 0 | H129: - | I129: 0 | J129: 0 | N129: 0 | O129: 0 | P129: 0 | Q129: 0 | T129: 0 | U129: 0 | V129: 1 | W129: 0 | X129: 0 | Y129: 0 | Z129: 0
G130: 0 | H130: - | I130: 0 | J130: 0 | N130: 0 | O130: 0 | P130: 0 | Q130: 0 | T130: 0 | U130: 0 | V130: 1 | W130: 0 | X130: 0 | Y130: 0 | Z130: 0
G131: 0 | H131: - | I131: 0 | J131: 0 | N131: 0 | O131: 0 | P131: 0 | Q131: 0 | T131: 0 | U131: 0 | V131: 1 | W131: 0 | X131: 0 | Y131: 0 | Z131: 0
G132: 0 | H132: - | I132: 0 | J132: 0 | N132: 0 | O132: 0 | P132: 0 | Q132: 0 | T132: 0 | U132: 0 | V132: 1 | W132: 0 | X132: 0 | Y132: 0 | Z132: 0
G133: 0 | H133: - | I133: 0 | J133: 0 | N133: 0 | O133: 0 | P133: 0 | Q133: 0 | T133: 0 | U133: 0 | V133: 1 | W133: 0 | X133: 0 | Y133: 0 | Z133: 0
G134: 0 | H134: - | I134: 0 | J134: 0 | N134: 0 | O134: 0 | P134: 0 | Q134: 0 | T134: 0 | U134: 0 | V134: 1 | W134: 0 | X134: 0 | Y134: 0 | Z134: 0
G135: 0 | H135: - | I135: 0 | J135: 0 | N135: 0 | O135: 0 | P135: 0 | Q135: 0 | T135: 0 | U135: 0 | V135: 1 | W135: 0 | X135: 0 | Y135: 0 | Z135: 0
G136: 0 | H136: - | I136: 0 | J136: 0 | N136: 0 | O136: 0 | P136: 0 | Q136: 0 | T136: 0 | U136: 0 | V136: 1 | W136: 0 | X136: 0 | Y136: 0 | Z136: 0
G137: 0 | H137: - | I137: 0 | J137: 0 | N137: 0 | O137: 0 | P137: 0 | Q137: 0 | T137: 0 | U137: 0 | V137: 1 | W137: 0 | X137: 0 | Y137: 0 | Z137: 0
G138: 0 | H138: - | I138: 0 | J138: 0 | N138: 0 | O138: 0 | P138: 0 | Q138: 0 | T138: 0 | U138: 0 | V138: 1 | W138: 0 | X138: 0 | Y138: 0 | Z138: 0
B139: 0.4 | C139: Specialist Ground Works | E139: - | F139: =SUM(F140:F154) -> 0 | G139: =IF(AND(F139<>0,$D$31<>0),F139/$D$31,0) -> 0 | H139: - | I139: - | J139: =SUM(J140:J154) -> 0 | K139: - | L139: - | M139: - | N139: - | O139: =SUM(O140:O154) -> 0 | P139: - | Q139: =SUM(Q140:Q154) -> 0 | R139: - | S139: - | T139: =IF(W139<>0,W139/($F$139+$O$139),0) -> 0 | U139: =IF(Y139<>0,Y139/($F$139+$O$139),0) -> 0 | V139: 1 | W139: =SUM(W140:W154) -> 0 | X139: 0 | Y139: =SUM(Y140:Y154) -> 0 | Z139: 0
B140: 0.4 | C140: Specialist Ground Works | G140: =IF(AND(F140<>0,$D$31<>0),F140/$D$31,0) -> 0 | H140: - | I140: 0 | J140: =I140*F140 -> 0 | N140: =IF(M140<>0,INT(59/M140),0) -> 0 | O140: =F140*N140 -> 0 | P140: 0 | Q140: =O140*P140 -> 0 | T140: 0 | U140: 0 | V140: 1 | W140: 0 | X140: 0 | Y140: 0 | Z140: 0
G141: =IF(AND(F141<>0,$D$31<>0),F141/$D$31,0) -> 0 | H141: - | I141: 0 | J141: 0 | N141: =IF(M141<>0,INT(59/M141),0) -> 0 | O141: =F141*N141 -> 0 | P141: 0 | Q141: =O141*P141 -> 0 | T141: 0 | U141: 0 | V141: 1 | W141: 0 | X141: 0 | Y141: 0 | Z141: 0
G142: =IF(AND(F142<>0,$D$31<>0),F142/$D$31,0) -> 0 | H142: - | I142: 0 | J142: 0 | N142: 0 | O142: 0 | P142: 0 | Q142: 0 | T142: 0 | U142: 0 | V142: 1 | W142: 0 | X142: 0 | Y142: 0 | Z142: 0
G143: 0 | H143: - | I143: 0 | J143: 0 | N143: 0 | O143: 0 | P143: 0 | Q143: 0 | T143: 0 | U143: 0 | V143: 1 | W143: 0 | X143: 0 | Y143: 0 | Z143: 0
G144: 0 | H144: - | I144: 0 | J144: 0 | N144: 0 | O144: 0 | P144: 0 | Q144: 0 | T144: 0 | U144: 0 | V144: 1 | W144: 0 | X144: 0 | Y144: 0 | Z144: 0
G145: 0 | H145: - | I145: 0 | J145: 0 | N145: 0 | O145: 0 | P145: 0 | Q145: 0 | T145: 0 | U145: 0 | V145: 1 | W145: 0 | X145: 0 | Y145: 0 | Z145: 0
G146: 0 | H146: - | I146: 0 | J146: 0 | N146: 0 | O146: 0 | P146: 0 | Q146: 0 | T146: 0 | U146: 0 | V146: 1 | W146: 0 | X146: 0 | Y146: 0 | Z146: 0
G147: 0 | H147: - | I147: 0 | J147: 0 | N147: 0 | O147: 0 | P147: 0 | Q147: 0 | T147: 0 | U147: 0 | V147: 1 | W147: 0 | X147: 0 | Y147: 0 | Z147: 0
G148: 0 | H148: - | I148: 0 | J148: 0 | N148: 0 | O148: 0 | P148: 0 | Q148: 0 | T148: 0 | U148: 0 | V148: 1 | W148: 0 | X148: 0 | Y148: 0 | Z148: 0
G149: 0 | H149: - | I149: 0 | J149: 0 | N149: 0 | O149: 0 | P149: 0 | Q149: 0 | T149: 0 | U149: 0 | V149: 1 | W149: 0 | X149: 0 | Y149: 0 | Z149: 0
G150: 0 | H150: - | I150: 0 | J150: 0 | N150: 0 | O150: 0 | P150: 0 | Q150: 0 | T150: 0 | U150: 0 | V150: 1 | W150: 0 | X150: 0 | Y150: 0 | Z150: 0
G151: 0 | H151: - | I151: 0 | J151: 0 | N151: 0 | O151: 0 | P151: 0 | Q151: 0 | T151: 0 | U151: 0 | V151: 1 | W151: 0 | X151: 0 | Y151: 0 | Z151: 0
G152: 0 | H152: - | I152: 0 | J152: 0 | N152: 0 | O152: 0 | P152: 0 | Q152: 0 | T152: 0 | U152: 0 | V152: 1 | W152: 0 | X152: 0 | Y152: 0 | Z152: 0
G153: 0 | H153: - | I153: 0 | J153: 0 | N153: 0 | O153: 0 | P153: 0 | Q153: 0 | T153: 0 | U153: 0 | V153: 1 | W153: 0 | X153: 0 | Y153: 0 | Z153: 0
G154: 0 | H154: - | I154: 0 | J154: 0 | N154: 0 | O154: 0 | P154: 0 | Q154: 0 | T154: 0 | U154: 0 | V154: 1 | W154: 0 | X154: 0 | Y154: 0 | Z154: 0
B155: 1 | C155: Substructure | E155: - | F155: =SUM(F156:F175) -> 0 | G155: =IF(AND(F155<>0,$D$31<>0),F155/$D$31,0) -> 0 | H155: =SUMPRODUCT((C91:D454="Substructure")*G91:G454) -> 0 | I155: - | J155: =SUM(J156:J175) -> 0 | K155: - | L155: - | M155: - | N155: - | O155: =SUM(O156:O175) -> 0 | P155: - | Q155: =SUM(Q156:Q175) -> 0 | R155: - | S155: - | T155: =IF(W155<>0,W155/($F$155+$O$155),0) -> 0 | U155: =IF(Y155<>0,Y155/($F$155+$O$155),0) -> 0 | V155: 1 | W155: =SUM(W156:W175) -> 0 | X155: 0 | Y155: =SUM(Y156:Y175) -> 0 | Z155: 0
B156: 1 | C156: Substructure | G156: =IF(AND(F156<>0,$D$31<>0),F156/$D$31,0) -> 0 | H156: - | I156: 0 | J156: =I156*F156 -> 0 | N156: =IF(M156<>0,INT(59/M156),0) -> 0 | O156: =F156*N156 -> 0 | P156: 0 | Q156: =O156*P156 -> 0 | T156: 0 | U156: 0 | V156: 1 | W156: =T156*(F156+O156) -> 0 | X156: 0 | Y156: =U156*(F156+O156) -> 0 | Z156: 0
G157: =IF(AND(F157<>0,$D$31<>0),F157/$D$31,0) -> 0 | H157: - | I157: 0 | J157: 0 | N157: =IF(M157<>0,INT(59/M157),0) -> 0 | O157: =F157*N157 -> 0 | P157: 0 | Q157: =O157*P157 -> 0 | T157: 0 | U157: 0 | V157: =1-T157-U157 -> 1 | W157: 0 | X157: =IF(AND(W157<>0,$D$31<>0),W157/$D$31,0) -> 0 | Y157: 0 | Z157: 0
G158: =IF(AND(F158<>0,$D$31<>0),F158/$D$31,0) -> 0 | H158: - | I158: 0 | J158: 0 | N158: 0 | O158: 0 | P158: 0 | Q158: 0 | T158: 0 | U158: 0 | V158: 1 | W158: 0 | X158: 0 | Y158: 0 | Z158: 0
G159: 0 | H159: - | I159: 0 | J159: 0 | N159: 0 | O159: 0 | P159: 0 | Q159: 0 | T159: 0 | U159: 0 | V159: 1 | W159: 0 | X159: 0 | Y159: 0 | Z159: 0
G160: 0 | H160: - | I160: 0 | J160: 0 | N160: 0 | O160: 0 | P160: 0 | Q160: 0 | T160: 0 | U160: 0 | V160: 1 | W160: 0 | X160: 0 | Y160: 0 | Z160: 0
G161: 0 | H161: - | I161: 0 | J161: 0 | N161: 0 | O161: 0 | P161: 0 | Q161: 0 | T161: 0 | U161: 0 | V161: 1 | W161: 0 | X161: 0 | Y161: 0 | Z161: 0
G162: 0 | H162: - | I162: 0 | J162: 0 | N162: 0 | O162: 0 | P162: 0 | Q162: 0 | T162: 0 | U162: 0 | V162: 1 | W162: 0 | X162: 0 | Y162: 0 | Z162: 0
G163: 0 | H163: - | I163: 0 | J163: 0 | N163: 0 | O163: 0 | P163: 0 | Q163: 0 | T163: 0 | U163: 0 | V163: 1 | W163: 0 | X163: 0 | Y163: 0 | Z163: 0
G164: 0 | H164: - | I164: 0 | J164: 0 | N164: 0 | O164: 0 | P164: 0 | Q164: 0 | T164: 0 | U164: 0 | V164: 1 | W164: 0 | X164: 0 | Y164: 0 | Z164: 0
G165: 0 | H165: - | I165: 0 | J165: 0 | N165: 0 | O165: 0 | P165: 0 | Q165: 0 | T165: 0 | U165: 0 | V165: 1 | W165: 0 | X165: 0 | Y165: 0 | Z165: 0
G166: 0 | H166: - | I166: 0 | J166: 0 | N166: 0 | O166: 0 | P166: 0 | Q166: 0 | T166: 0 | U166: 0 | V166: 1 | W166: 0 | X166: 0 | Y166: 0 | Z166: 0
G167: 0 | H167: - | I167: 0 | J167: 0 | N167: 0 | O167: 0 | P167: 0 | Q167: 0 | T167: 0 | U167: 0 | V167: 1 | W167: 0 | X167: 0 | Y167: 0 | Z167: 0
G168: 0 | H168: - | I168: 0 | J168: 0 | N168: 0 | O168: 0 | P168: 0 | Q168: 0 | T168: 0 | U168: 0 | V168: 1 | W168: 0 | X168: 0 | Y168: 0 | Z168: 0
G169: 0 | H169: - | I169: 0 | J169: 0 | N169: 0 | O169: 0 | P169: 0 | Q169: 0 | T169: 0 | U169: 0 | V169: 1 | W169: 0 | X169: 0 | Y169: 0 | Z169: 0
G170: =IF(AND(F170<>0,$D$31<>0),F170/$D$31,0) -> 0 | H170: - | I170: 0 | J170: 0 | N170: 0 | O170: 0 | P170: 0 | Q170: 0 | T170: 0 | U170: 0 | V170: 1 | W170: 0 | X170: 0 | Y170: 0 | Z170: 0
G171: =IF(AND(F171<>0,$D$31<>0),F171/$D$31,0) -> 0 | H171: - | I171: 0 | J171: 0 | N171: 0 | O171: 0 | P171: 0 | Q171: 0 | T171: 0 | U171: 0 | V171: 1 | W171: 0 | X171: 0 | Y171: 0 | Z171: 0
G172: =IF(AND(F172<>0,$D$31<>0),F172/$D$31,0) -> 0 | H172: - | I172: 0 | J172: 0 | N172: 0 | O172: 0 | P172: 0 | Q172: 0 | T172: 0 | U172: 0 | V172: 1 | W172: 0 | X172: 0 | Y172: 0 | Z172: 0
G173: 0 | H173: - | I173: 0 | J173: 0 | N173: 0 | O173: 0 | P173: 0 | Q173: 0 | T173: 0 | U173: 0 | V173: 1 | W173: 0 | X173: 0 | Y173: 0 | Z173: 0
G174: 0 | H174: - | I174: 0 | J174: 0 | N174: 0 | O174: 0 | P174: 0 | Q174: 0 | T174: 0 | U174: 0 | V174: 1 | W174: 0 | X174: 0 | Y174: 0 | Z174: 0
G175: =IF(AND(F175<>0,$D$31<>0),F175/$D$31,0) -> 0 | H175: - | I175: 0 | J175: 0 | N175: =IF(M175<>0,INT(59/M175),0) -> 0 | O175: 0 | P175: 0 | Q175: 0 | T175: 0 | U175: 0 | V175: 1 | W175: 0 | X175: 0 | Y175: 0 | Z175: 0
B176: 2.1 | C176: Superstructure: Frame | E176: - | F176: =SUM(F177:F196) -> 0 | G176: =IF(AND(F176<>0,$D$31<>0),F176/$D$31,0) -> 0 | H176: =SUMPRODUCT((C91:D454="Superstructure: Frame")*G91:G454) -> 0 | I176: - | J176: =SUM(J177:J196) -> 0 | K176: - | L176: - | M176: - | N176: - | O176: =SUM(O177:O196) -> 0 | P176: - | Q176: =SUM(Q177:Q196) -> 0 | R176: - | S176: - | T176: =IF(W176<>0,W176/($F$176+$O$176),0) -> 0 | U176: =IF(Y176<>0,Y176/($F$176+$O$176),0) -> 0 | V176: 1 | W176: =SUM(W177:W196) -> 0 | X176: 0 | Y176: =SUM(Y177:Y196) -> 0 | Z176: 0
B177: 2.1 | C177: Superstructure: Frame | G177: =IF(AND(F177<>0,$D$31<>0),F177/$D$31,0) -> 0 | H177: - | I177: 0 | J177: =I177*F177 -> 0 | N177: =IF(M177<>0,INT(59/M177),0) -> 0 | O177: =F177*N177 -> 0 | P177: 0 | Q177: =O177*P177 -> 0 | T177: 0 | U177: 0 | V177: 1 | W177: =T177*(F177+O177) -> 0 | X177: 0 | Y177: =U177*(F177+O177) -> 0 | Z177: 0
G178: =IF(AND(F178<>0,$D$31<>0),F178/$D$31,0) -> 0 | H178: - | I178: 0 | J178: 0 | N178: =IF(M178<>0,INT(59/M178),0) -> 0 | O178: =F178*N178 -> 0 | P178: 0 | Q178: =O178*P178 -> 0 | T178: 0 | U178: 0 | V178: 1 | W178: 0 | X178: 0 | Y178: 0 | Z178: 0
G179: =IF(AND(F179<>0,$D$31<>0),F179/$D$31,0) -> 0 | H179: - | I179: 0 | J179: 0 | N179: 0 | O179: 0 | P179: 0 | Q179: 0 | T179: 0 | U179: 0 | V179: 1 | W179: 0 | X179: 0 | Y179: 0 | Z179: 0
G180: 0 | H180: - | I180: 0 | J180: 0 | N180: 0 | O180: 0 | P180: 0 | Q180: 0 | T180: 0 | U180: 0 | V180: 1 | W180: 0 | X180: 0 | Y180: 0 | Z180: 0
G181: 0 | H181: - | I181: 0 | J181: 0 | N181: 0 | O181: 0 | P181: 0 | Q181: 0 | T181: 0 | U181: 0 | V181: 1 | W181: 0 | X181: 0 | Y181: 0 | Z181: 0
G182: 0 | H182: - | I182: 0 | J182: 0 | N182: 0 | O182: 0 | P182: 0 | Q182: 0 | T182: 0 | U182: 0 | V182: 1 | W182: 0 | X182: 0 | Y182: 0 | Z182: 0
G183: 0 | H183: - | I183: 0 | J183: 0 | N183: 0 | O183: 0 | P183: 0 | Q183: 0 | T183: 0 | U183: 0 | V183: 1 | W183: 0 | X183: 0 | Y183: 0 | Z183: 0
G184: 0 | H184: - | I184: 0 | J184: 0 | N184: 0 | O184: 0 | P184: 0 | Q184: 0 | T184: 0 | U184: 0 | V184: 1 | W184: 0 | X184: 0 | Y184: 0 | Z184: 0
G185: 0 | H185: - | I185: 0 | J185: 0 | N185: 0 | O185: 0 | P185: 0 | Q185: 0 | T185: 0 | U185: 0 | V185: 1 | W185: 0 | X185: 0 | Y185: 0 | Z185: 0
G186: 0 | H186: - | I186: 0 | J186: 0 | N186: 0 | O186: 0 | P186: 0 | Q186: 0 | T186: 0 | U186: 0 | V186: 1 | W186: 0 | X186: 0 | Y186: 0 | Z186: 0
G187: 0 | H187: - | I187: 0 | J187: 0 | N187: 0 | O187: 0 | P187: 0 | Q187: 0 | T187: 0 | U187: 0 | V187: 1 | W187: 0 | X187: 0 | Y187: 0 | Z187: 0
G188: 0 | H188: - | I188: 0 | J188: 0 | N188: 0 | O188: 0 | P188: 0 | Q188: 0 | T188: 0 | U188: 0 | V188: 1 | W188: 0 | X188: 0 | Y188: 0 | Z188: 0
G189: 0 | H189: - | I189: 0 | J189: 0 | N189: 0 | O189: 0 | P189: 0 | Q189: 0 | T189: 0 | U189: 0 | V189: 1 | W189: 0 | X189: 0 | Y189: 0 | Z189: 0
G190: 0 | H190: - | I190: 0 | J190: 0 | N190: 0 | O190: 0 | P190: 0 | Q190: 0 | T190: 0 | U190: 0 | V190: 1 | W190: 0 | X190: 0 | Y190: 0 | Z190: 0
G191: =IF(AND(F191<>0,$D$31<>0),F191/$D$31,0) -> 0 | H191: - | I191: 0 | J191: 0 | N191: 0 | O191: 0 | P191: 0 | Q191: 0 | T191: 0 | U191: 0 | V191: 1 | W191: 0 | X191: 0 | Y191: 0 | Z191: 0
G192: =IF(AND(F192<>0,$D$31<>0),F192/$D$31,0) -> 0 | H192: - | I192: 0 | J192: 0 | N192: 0 | O192: 0 | P192: 0 | Q192: 0 | T192: 0 | U192: 0 | V192: 1 | W192: 0 | X192: 0 | Y192: 0 | Z192: 0
G193: =IF(AND(F193<>0,$D$31<>0),F193/$D$31,0) -> 0 | H193: - | I193: 0 | J193: 0 | N193: 0 | O193: 0 | P193: 0 | Q193: 0 | T193: 0 | U193: 0 | V193: 1 | W193: 0 | X193: 0 | Y193: 0 | Z193: 0
G194: =IF(AND(F194<>0,$D$31<>0),F194/$D$31,0) -> 0 | H194: - | I194: 0 | J194: 0 | N194: 0 | O194: 0 | P194: 0 | Q194: 0 | T194: 0 | U194: 0 | V194: 1 | W194: 0 | X194: 0 | Y194: 0 | Z194: 0
G195: 0 | H195: - | I195: 0 | J195: 0 | N195: 0 | O195: 0 | P195: 0 | Q195: 0 | T195: 0 | U195: 0 | V195: 1 | W195: 0 | X195: 0 | Y195: 0 | Z195: 0
G196: 0 | H196: - | I196: 0 | J196: 0 | N196: 0 | O196: 0 | P196: 0 | Q196: 0 | T196: 0 | U196: 0 | V196: 1 | W196: 0 | X196: 0 | Y196: 0 | Z196: 0
B197: 2.2 | C197: Superstructure: Upper Floors | E197: - | F197: =SUM(F198:F217) -> 0 | G197: =IF(AND(F197<>0,$D$31<>0),F197/$D$31,0) -> 0 | H197: =SUMPRODUCT((C176:D459="Superstructure: Upper Floors")*G176:G459) -> 0 | I197: - | J197: =SUM(J198:J217) -> 0 | K197: - | L197: - | M197: - | N197: - | O197: =SUM(O198:O217) -> 0 | P197: - | Q197: =SUM(Q198:Q217) -> 0 | R197: - | S197: - | T197: =IF(W197<>0,W197/($F$197+$O$197),0) -> 0 | U197: =IF(Y197<>0,Y197/($F$197+$O$197),0) -> 0 | V197: 1 | W197: =SUM(W198:W217) -> 0 | X197: 0 | Y197: =SUM(Y198:Y217) -> 0 | Z197: 0
B198: 2.2 | C198: Superstructure: Upper Floors | G198: =IF(AND(F198<>0,$D$31<>0),F198/$D$31,0) -> 0 | H198: - | I198: 0 | J198: =I198*F198 -> 0 | N198: =IF(M198<>0,INT(59/M198),0) -> 0 | O198: =F198*N198 -> 0 | P198: 0 | Q198: =O198*P198 -> 0 | T198: 0 | U198: 0 | V198: 1 | W198: =T198*(F198+O198) -> 0 | X198: 0 | Y198: =U198*(F198+O198) -> 0 | Z198: 0
G199: =IF(AND(F199<>0,$D$31<>0),F199/$D$31,0) -> 0 | H199: - | I199: 0 | J199: 0 | N199: =IF(M199<>0,INT(59/M199),0) -> 0 | O199: =F199*N199 -> 0 | P199: 0 | Q199: =O199*P199 -> 0 | T199: 0 | U199: 0 | V199: 1 | W199: 0 | X199: 0 | Y199: 0 | Z199: 0
G200: =IF(AND(F200<>0,$D$31<>0),F200/$D$31,0) -> 0 | H200: - | I200: 0 | J200: 0 | N200: 0 | O200: 0 | P200: 0 | Q200: 0 | T200: 0 | U200: 0 | V200: 1 | W200: 0 | X200: 0 | Y200: 0 | Z200: 0
G201: 0 | H201: - | I201: 0 | J201: 0 | N201: 0 | O201: 0 | P201: 0 | Q201: 0 | T201: 0 | U201: 0 | V201: 1 | W201: 0 | X201: 0 | Y201: 0 | Z201: 0
G202: 0 | H202: - | I202: 0 | J202: 0 | N202: 0 | O202: 0 | P202: 0 | Q202: 0 | T202: 0 | U202: 0 | V202: 1 | W202: 0 | X202: 0 | Y202: 0 | Z202: 0
G203: 0 | H203: - | I203: 0 | J203: 0 | N203: 0 | O203: 0 | P203: 0 | Q203: 0 | T203: 0 | U203: 0 | V203: 1 | W203: 0 | X203: 0 | Y203: 0 | Z203: 0
G204: 0 | H204: - | I204: 0 | J204: 0 | N204: 0 | O204: 0 | P204: 0 | Q204: 0 | T204: 0 | U204: 0 | V204: 1 | W204: 0 | X204: 0 | Y204: 0 | Z204: 0
G205: 0 | H205: - | I205: 0 | J205: 0 | N205: 0 | O205: 0 | P205: 0 | Q205: 0 | T205: 0 | U205: 0 | V205: 1 | W205: 0 | X205: 0 | Y205: 0 | Z205: 0
G206: 0 | H206: - | I206: 0 | J206: 0 | N206: 0 | O206: 0 | P206: 0 | Q206: 0 | T206: 0 | U206: 0 | V206: 1 | W206: 0 | X206: 0 | Y206: 0 | Z206: 0
G207: 0 | H207: - | I207: 0 | J207: 0 | N207: 0 | O207: 0 | P207: 0 | Q207: 0 | T207: 0 | U207: 0 | V207: 1 | W207: 0 | X207: 0 | Y207: 0 | Z207: 0
G208: 0 | H208: - | I208: 0 | J208: 0 | N208: 0 | O208: 0 | P208: 0 | Q208: 0 | T208: 0 | U208: 0 | V208: 1 | W208: 0 | X208: 0 | Y208: 0 | Z208: 0
G209: 0 | H209: - | I209: 0 | J209: 0 | N209: 0 | O209: 0 | P209: 0 | Q209: 0 | T209: 0 | U209: 0 | V209: 1 | W209: 0 | X209: 0 | Y209: 0 | Z209: 0
G210: 0 | H210: - | I210: 0 | J210: 0 | N210: 0 | O210: 0 | P210: 0 | Q210: 0 | T210: 0 | U210: 0 | V210: 1 | W210: 0 | X210: 0 | Y210: 0 | Z210: 0
... 272 more rows

Sheet Detailed Application Stage
A4: Detailed Application Stage - Circular Economy Statement
D6: Project Details
C7: Project name | D7: Jamestown Road
C8: Planning application reference number (if applicable)
C9: Applicant
C10: London Borough | D10: London Borough of Camden
C11: Brief description of the project
C12: Author/s
C13: Date of assessment
C14: Number of Use Types | D14: 1
C15: Use Class / Type | D15: Floor Area by use type (m2)
C16: Use Class / Type 1 | D16: 9879
C17: Use Class / Type 2 | D17: Use Class / Type 2 GIA
C18: Use Class / Type 3 | D18: Use Class / Type 3 GIA
C19: Use Class / Type 4 | D19: Use Class / Type 4 GIA
C20: Use Class / Type 5 | D20: Use Class / Type 5 GIA
C21: Use Class / Type 6 | D21: Use Class / Type 6 GIA
C22: Use Class / Type 7 | D22: Use Class / Type 7 GIA
C23: Use Class / Type 8 | D23: Use Class / Type 8 GIA
C24: Use Class / Type 9 | D24: Use Class / Type 9 GIA
C25: Use Class / Type 10 | D25: Use Class / Type 10 GIA
C26: Use Class / Type 11 | D26: Use Class / Type 11 GIA
C27: Use Class / Type 12 | D27: Use Class / Type 12 GIA
C28: Use Class / Type 13 | D28: Use Class / Type 13 GIA
C29: Use Class / Type 14 | D29: Use Class / Type 14 GIA
C30: Use Class / Type 15 | D30: Use Class / Type 15 GIA
C31: Overall GIA (m2) | D31: =SUM(D16:D30) -> 9879
B34: Circular Economy Design Approaches
B35: Circular Economy Design Approaches for Existing Structures / Buildings | D35: Applicant Response
B36: Is there an existing building on the site? | D36: Yes
B37: Is it technically feasible to retain the building(s) in whole or in part? | D37: No
B38: Are there any building materials or elements available on site that can be used?
B39: Is the existing building, or parts of the building, suited to the requirements for the site?
B40: Is it technically feasible to recover the 'residual value' of the buildings elements or materials? | D40: No
B41: The preferred strategy is: | D41: NEW BUILDING
B42: The preferred strategy is: | D42: RETAIN and RETROFIT
B43: The preferred strategy is: | D43: PARTIAL RETENTION and REFURBISHMENT
B44: The preferred strategy is: | D44: DISASSEMBLE/DECONSTRUCT AND REUSE
B45: The preferred strategy is: | D45: DEMOLISH/DECONSTRUCT AND RECYCLE
B46: Circular Economy Design Approach | C46: Phase/Building/Area/Layer | D46: Strategic Response
B47: Retain and Retrofit | C47: N/A | D47: Potential for redevelopment and the decision to dismantle the building is rooted in several reasons. First, the site itself bears little historical significance. The area has undergone various transformations but unlike neighbouring buildings, this site bears minimal historical weight. Further, the industrial style that once defined this area now clashes with the evolving character of the site’s surroundings. The buildings’ architectural merit faces limitations in the context of contemporary use. Today, the focus leans toward creating vibrant social hubs rather than preserving industrial relics.
B48: Partial Retention and Refurbishment | C48: N/A | D48: While the upper floors of the buildings will be demolished, it is proposed to retain the existing basement walls to use as a temporary formwork to construct a larger and slightly deeper basement.
B49: Disassemble and Reuse | C49: N/A | D49: The possibility of salvaging and reusing these bricks should be investigated, it may be possible to cut ‘panels’ from the external walls.
B50: Demolish and Recycle | C50: Existing concrete Existing structural steelwork Existing brickwork and tiles Existing windows | D50: Concrete on site should be segregated and can be crushed to produce recycled concrete aggregate Metal could be dismantled and reused or recycled. Other metal items can be recycled, and the decorative metal work and grates could be repurposed. Where reuse is not possible, the bricks should be separated from other materials and can be crushed to produce recycled aggregate. If this material is surplus to requirements or there is not enough space on site for storage it should be sent to a licensed waste contractor for crushing and recycling. On site existing building materials to be recovered where practical and either re-used on site or recycled off site as per BREEAM Wst 01 credit diversion from landfill. Specialist to be appointed to undertake a pre-demolition audit to assess the opportunities for maximising material recovery. The windows in the main building 1 appear to be double glazed with aluminium, and in relatively good condition. Windows in building 2 appear to be single glaze, with varied frames of timber and aluminium. These windows could be considered for re-use via a salvage/ reclamation contractor, it is unlikely that it will be possible to reuse the windows elsewhere onsite so these should be segregated on site where possible. The glass from the partitions could be offered for reuse but if this is not possible it should also be segregated on site before being removed by a licensed waste contractor for recycling. BREEAM Wst 01 to be achieved and exceeded with 95% of demolition waste to be diverted from landfill.
B51: Circular Economy Design Approaches for New Buildings, Infrastructure and Layers Over the Lifetime of the Development | D51: Applicant Response
B52: Is the whole building designed to have a short life on its current site? (e.g. less than 10 yrs) | D52: No
B53: Is there likely to be a need for building of a similar size (etc.) in different locations in the future?
B54: Is it foreseeable that the building will need to change use/function within its design life? | D54: No
B55: The preferred strategy is: | D55: Design for BUILDING RELOCATION
B56: The preferred strategy is: | D56: Design for COMPONENT / MATERIAL REUSE
B57: The preferred strategy is: | D57: Design for ADAPTABILITY
B58: All developments should apply the 6 Circular Economy principles, including: | D58: Designing for DISASSEMBLY and ADAPTABILITY, MATERIAL REUSE ON-SITE and/or RECYCLING should be maximised
B59: Circular Economy Design Approach | C59: Phase/Building/Area/Layer | D59: Strategic Response
B60: Building relocation | C60: N/A | D60: N/A
B61: Component or material reuse | C61: Brick and Blockwork Materials and Framing Design for Off-site Manufacture – Precast Concrete Cement Replacement Recycled Reinforcement Recycled Aggregates Lightweight Aggregates | D61: Hand laid brick specified currently over prefabricated bonded systems. "A concrete frame solution, with optimum structural grids, minimizing transfer structures has been developed to meet the client brief. In order to reduce the embodied carbon and improve sustainability of the concrete solution, a number of efficiencies have been considered as described below. The building will also benefit from the thermal mass properties of concrete throughout its design life post-construction to offset carbon as a result of the new development." An in-situ concrete solution has been assumed for the frame with precast stairs. Design for off-site manufacture of the primary structural frame components will be investigated for the next stage of procurement. This could incorporate precast column sections, twin wall and solid panel precast construction. By using an off-site precast concrete facility, sustainability can be enhanced through management and control of the construction process reducing wastage and optimising vehicle deliveries. Current member sizes for the core walls are such that they can be constructed using a Twin-Wall system or similar. "Cement replacement with GGBS results in a reduction in the embodied carbon as a result of cement production. Ground Granulated Blast Furnace Slag (GGBS) is a by-product of iron making and an effective cement replacement material which can reduce the embodied carbon of a concrete mix. Concrete mix designs for the project are to incorporate a typical minimum 30% cement replacement with GGBS. Increasing GGBS has an effect on the rate of early age strength development of the concrete. Proposals for cement replacement at higher levels will need to be reviewed with the contractor for the impact on formwork cycles and striking times. The typical 7-day strength of a GGBS concrete has been found to be 55-65% of the 28 day strength compared to 70-80% for a similar CEM I mix. Similar 28 day strengths to a CEM I mix will normally be achieved when using up to 50% GGBS cement replacement. Consideration of maximum GGBS will be undertaken with the main contractor for supply chain feedback and developed with strength gain in considered versus formwork cycles. • Target min 25-30% GGBS in concrete slabs/walls and columns • Target min 30-50% GGBS in foundations/piles & pilecaps" "Many of the major reinforcement producers recycle locally sourced scrap metal using an electric arc furnace process, with minimal new materials to ensure correct properties. The high percentage of recycled material reduces the embodied carbon factor. Contractor proposals for reinforcement procurement will be reviewed for their use of recycled materials to ensure a more sustainable solution. • Target 97% recycled content" Recycled aggregates give a reduction in the use of virgin aggregates and the use of recycled concrete aggregates reduces the amount of waste sent to landfill. Thus, valuable mineral resources are preserved and there can be an improvement on the overall carbon footprint. Provision will be made in the specification for recycled aggregates in the next stage. "By using lightweight aggregates, the self-weight of the structural concrete can be reduced, in turn reducing loading to columns and foundations to minimise section sizes and material volumes. Other potential benefits include improved handling and lifting operations of lighter precast elements and a reduction in formwork and propping materials. The use of lightweight aggregates has an effect on the structural properties of the concrete however and a detailed review would be required. Additionally, there are procurement aspects to consider due to greater limitations on supplier."
B62: Adaptability | C62: New Building | D62: The structural grid and service routes for the new building are arranged in a highly regular grid. Together with a relatively shallow block depth and core locations, the buildings lends itself to a residential adaptation. Typical residential and hotel layouts have been tested using these grids. Amenity spaces could be re-purposed for hotel restaurant/ bar and BOH use. In terms of specific spare capacity allocated within new plant and distribution mains, the following allowances will be considered as the design is developed:  25% capacity on electrical distribution boards (number of ways)  25% spare capacity (by number of points) on BEMS system  100% spare capacity on sprinkler pumps (N+1), via duty and stand-by pump arrangement  100% spare capacity on wet riser pumps (N+1), via duty and stand-by pump arrangement  100% spare capacity on domestic water pumps (N+1), via duty, assist & stand-by pump arrangement Margins will be allowed on the specified duty of plant in line with CIBSE recommendations. The extent to which future expansion is required for the project is undefined, and there is no intent to designate specific floor plate which is to be used for future expansion associated with MEP plant. However primary infrastructure plant for example, water booster pumps etc. will be modular in design such that additional infrastructure can be easily added should there be a need for future expansion on the site.
B63: Flexibility | C63: New Building | D63: The structural grid and service routes for the new building are arranged in a highly regular grid. Together with a relatively shallow block depth and core locations, the buildings lends itself to a residential adaptation. Typical residential and hotel layouts have been tested using these grids. Amenity spaces could be re-purposed for hotel restaurant/ bar and BOH use. MEP systems will be designed such that they can be modified to suit a degree of internal reconfiguration without the need for major replacement, for example by zoning and careful design of system circuitry. Zone isolation facilities will be provided to enable reconfiguration work to take place without affecting the entire building. The concrete frame building is designed for a mixture of residential/student and Industrial uses. With regards to a future change of use for the building as a whole, the load allowances are such that the student accommodation could be converted to either residential/hotel use with minimal construction works to the frame. The Industrial box has a higher degree of flexibility in change of use as its been designed for high floor loadings and large clear spans. The concrete slabs give good flexibility for the introduction of new builders work holes in future. With the use of precast components, through careful demolition, whole sections can be reused for other developments, reducing the embodied carbon of future construction work. A movement joint has been incorporated between the student/residential accommodation to allow future flexibility should part of the structure need to be demolished.
B64: Replaceability | C64: All areas | D64: Plant areas area accessed by the core or are directly accessible from the street to ensure plant replacement is possible. Risers to the PBSA rooms are accessed from the communal corridor to ensure repair and replacement without access to rooms is possible. For further input, refer to STR and MEP. All items of plant and equipment will be installed and located in such a manner that access for servicing and maintenance is achieved in accordance with the manufacturer’s minimum requirements. In addition, relevant guidance from other good practice documents will be followed, including CIBSE Guide to ownership, operation, and maintenance of building services, To develop an initial strategy for removing and replacing major items of Building Services plant, the following allowances have been made within the design: Plantrooms at Level 00 have access direct to outside, or onto a communal corridor. Plant generally can be broken down into component parts and can be moved to lifts and through the internal corridors wherever necessary, Mechanical and Public Health plant rooms to have double doors of clear width 2,000mm and an absolute minimum clear height of 2,400mm, Clear height within plant rooms shall generally be at a minimum of 3,780mm, All plant room doors open into the corridor or externally, and flat against the wall.
B65: Disassembly | C65: All areas | D65: Material passports will be used for all significant elements of the build. Information on products and materials, their history re-use potential will be stored in the BIM model issued on completion of the project. This will allow for easier future use of building components and encourage specification of products and systems that can easily be deconstructed. All items of major MEP plant will generally be capable of being disasemnled into component parts and re-assembled insitu. As the design develops a plant access and aminatnace stratgey will be produed which will demotrate how major items of plant and ewquipment can be replaced throughout the life of the building. The concrete frame building is designed for a mixture of residential/student and Industrial uses. With regards to a future change of use for the building as a whole, the load allowances are such that the student accommodation could be converted to either residential/hotel use with minimal construction works to the frame. The Industrial box has a higher degree of flexibility in change of use as its been designed for high floor loadings and large clear spans. The concrete slabs give good flexibility for the introduction of new builders work holes in future. With the use of precast components, through careful demolition, whole sections can be reused for other developments, reducing the embodied carbon of future construction work. A movement joint has been incorporated between the student/residential accommodation to allow future flexibility should part of the structure need to be demolished.
B66: Longevity | C66: All areas | D66: The reinforced concrete frame used throughout all parts of the building will be designed for a long lifespan to enable future re-use. Brick and masonry facades which are used across 80% of the building are typically very durable and require little maintenance to ensure their longevity. Inherently MEP plant when used heavily, will over the life of a building will require replacement, to extend the servcie life of the plant and equipment a reobust mainteance strategy incorprating PPM should be adopted by the client and buidliung operators.
B69: Circular Economy Design Principles by Building Layer
B70: The Circular Economy Design Principles by Building Layer table should consider where the Applicant seeks to go beyond standard practice. If there are multiple phases / buildings / areas with different measures / strategies, please specify these separately within the table below.
E71: Building Layer | M71: Summary | N71: Challenges | O71: Actions & Counter-Actions, Who and When | P71: Plan to Prove and Quantify
E72: Site | F72: Substructure | G72: Superstructure | H72: Shell/Skin | I72: Services | J72: Space | K72: Stuff | L72: Construction Stuff
B73: Is it likely the layer (or components within it) will need to be moved or otherwise modified within 5-15 years, e.g. due to changing use patterns or user requirements? | E73: N/A | F73: No | G73: No | H73: No | I73: No | J73: No | K73: Yes | L73: N/A
B74: Is it likely the layer (or components within it) will need to be changed, upgraded or replaced within 5-15 years, e.g. for improved performance, aesthetics | E74: N/A | F74: No | G74: No | H74: No | I74: No | J74: Yes | K74: Yes | L74: N/A
B75: The preferred strategy is: | E75: - | F75: =IF(F73="Yes","Design for FLEXIBILITY",IF(F74="Yes","Design for REPLACEABILITY",IF(AND(F73="No",F74="No"),"Design for ADAPTABILITY",""))) -> Design for ADAPTABILITY | G75: =IF(G73="Yes","Design for FLEXIBILITY",IF(G74="Yes","Design for REPLACEABILITY",IF(AND(G73="No",G74="No"),"Design for ADAPTABILITY",""))) -> Design for ADAPTABILITY | H75: Design for ADAPTABILITY | I75: Design for ADAPTABILITY | J75: Design for REPLACEABILITY | K75: Design for FLEXIBILITY | L75: -
B76: Design Principles | E76: All developments should apply the 6 circular economy principles, including designing for DISASSEMBLY and ADAPTABILITY, MATERIAL REUSE ON-SITE and/or RECYCLING should be maximised.
B77: Designing out waste | D77: Module A - Product Sourcing and Construction Stage | E77: Soft landscape has been maximised. Where paths are required, brick pavers and resin bound surfacing have been used in the locations where increased durability is required, otherwise self-binding gravel is used. The piling mat is to make use of the site-won materials arising from demolition of the existing building and hardstanding. Crushed material may also be considered for export and reuse elsewhere as 6F2. Stage 2 design utilizes the existing basement retaining wall as a temporary propping system to avoid the need for mechanical props and additional concrete thrust blocks. The proposed basement requires to be lower than the existing basement to satisfy minimum headroom requirements and it is proposed to construct a contiguous piled wall in board of the existing retaining wall to prevent undermining the existing basement structure. Where there is sufficient space to safely batter excavations a traditional reinforced concrete wall has been proposed to reduce the volume of concrete required for a full piled embedded retaining wall solution. | F77: A concrete frame solution, with optimum structural grids, minimizing transfer structures has been developed. Precast stairs has been assumed. Design for off-site manufacture of the primary structural frame components will be investigated for the next stage, e.g. precast column sections, twin wall and solid panel precast construction. • Target min 25-30% GGBS in concrete slabs/walls and columns • Target min 30-50% GGBS in foundations/piles & pilecaps • Target 97% recycled content for reinforcement Provision will be made in the specification for recycled aggregates in the next stage. Lightweight aggregates will be considered, however a detailed review would be required. | G77: Target min 25-30% GGBS in concrete slabs/walls and columns | H77: Low carbon materials; high recycled content; re-use from alternative waste stream (i.e. recycled bricks); recyclable materials; materials with EPDs. | I77: The MEP design will be sympathetic towards the use of modular approaches, such as pre-fabricated pod bathrooms, and pre-fabricated utility cupboards. In general the approach to modular construction will be governed by the contractor. | J77: Prefabricated or assembled off-site elements to be prioritised where possible i.e bathroom pods | K77: Prioritise locally sourced materials where possible, including furniture and fixtures that are designed with sustainability in mind. | L77: Opportunities to be investigated. and to be reviewed with contractor | M77: The nature of the design utilising a repetitive cellular arrangement lends itself to a system-based modular approach. Use of pre-fabricated elements especially internally presents opportunities for efficiency, both spatially and in reducing waste. Likewise, layouts have been developed to optimise the structural grid and minimise the amount of concrete and reinforcement required. | N77: Achieving optimal structural design through detailed design stages. Maximising cement replacement without impacting programme (e.g. affecting curing times) Sourcing local products and systems for as many elements of the build as possible – these may potentially result in increased costs. Likewise, sourcing sustainable materials may present cost/ viability challenges. Recycled content targets may limit product choice options. | O77: Rationalised building form and regular structural grid reduces the need for transfers and prioritises minimal wastage throughout where possible. Large span and regular structural grid and rationalised integrated building form reduces the need for transfers and prioritises minimal wastage throughout where possible. Sourcing local materials and products to reduce emissions and use low-carbon materials where possible. Use materials with high recycled content and can be recycled/reused Use materials with EPDs to compare and track environmental information Consider pre-fabricated and precast facades to maximise quality control & reduce waste Modularised elements reduce amount of waste produced Locally sourced furniture and fixtures that are designed with sustainability in mind Discussions to be conducted with fit-out suppliers/ subcontractors on reducing waste and re-usability of system components. E.g. purpose built furniture, fittings and finishes. | P77: Embodied carbon analysis tools to be used to test options at detailed design stages where applicable. EPD certificates to be sought for comparison tests between material choice options. BREEAM credits for Mat 01, Mat 02, Mat 03, Wst 01 and Ene 01 to be achieved. Implementation of a Site Waste Management Plan Reporting of actual waste against forecast waste within the Site Waste Management Plan
D78: Module B - In-Use Stage | E78: Adequate and recommended watering of trees and plants during initial establishment, to ensure these do not need to be replaced unnecessarily. Maintain weed growth in pavers which could damage joints. | F78: N/A, minimum work requried | G78: N/A, minimum work requried | H78: Allow easy maintenance reduce full elements replacement and related waste | I78: Leak detection and monitoring systems is proposed to be incorporated within the MEP design, both for the incoming mains water services and throughout the risers. | J78: Waste will be segregated into refuse, recyclables and garden waste where applicable | K78: Waste segregation into refuse, recyclables, and garden/food waste where applicable Operators/ landlords to develop strategies for analysing post-occupancy data. Implementation of Operational Waste Management Plan with effective methods to ensure that operational performance will be managed and reported | L78: N/A | M78: Building has been designed to respond to overheating requirements, lowering operational energy and heating requirements as much as possible and managing environmental constrains. The nature of the ongoing management presents opportunities to optimise their operations consumption of energy and other products. Implementation of the Operational Waste Management Plan The production of a Building User Guide | N78: Data on energy and water consumption will need intelligent analysis from all landlords to learn the right lessons which then feed into changes in the way facilities are operated to reduce energy and water use. Achievement of the 65% Municipal Waste recycling target. Materials to be robust and easy to maintain and replace. | O78: Mechanically fixed façade modules that can be disassembled Fixing elements such as windows and doors that can be easily removed and disassembled, causing minimal damage to materials Thermal mass of structures to moderate temperature variations minimising main volume mechanical systems. High thermal fabric values throughout further minimises energy consumption Passive measures integrated into architecture such as building orientation, shading, natural ventilation Thermally broken PPC aluminium windows provides better insulation and reduces need for mechanical heating/cooling, which reduces operational energy Leak detection will be included in the design Waste segregation into refuse, recyclables, and garden/food waste where applicable Operators/ landlords to develop strategies for analysing post-occupancy data. Implementation of Operational Waste Management Plan with effective methods to ensure that operational performance will be managed and reported | P78: Mechanical fixing of materials where possible as opposed to bonding to reduce damage and allow for future disassembly and reuse. Continuous reduction in energy and water use, recorded year on year. Submission of final Site Waste Management Plan BREEAM credits for Man 04, Ene 01, Ene 02, Mat 01, Mat 05 Wst 03, Wst 06 and Wat 02.
D79: Module C - End-of-Life Stage | E79: Play equipment is off-the-shelf, from a supplier who can recycle equipment. | F79: Steel reinforcement can be recycled. Concrete can be crushed for general aggregate. | H79: Maximize diversion from landfill | I79: The design will seek to incorporate measures to allow refrigerant recovery allowing the safe removal of refrigerants, such as CFCs, HCFCs, or HFCs, from cooling systems like air conditioners, refrigerators, and heat pumps. This procedure is essential to prevent the release of harmful chemicals into the atmosphere, which can contribute to ozone depletion and global warming. During recovery, refrigerants would be collected and stored in certified recovery cylinders using specialized equipment, ensuring compliance with environmental regulations. | J79: Minimising Packaging | K79: Mechanical fixing of items as opposed to bonding | L79: Opportunities to be investigated. and to be reviewed with contractor | M79: Due to the need for a concrete frame as the most efficient non-combustible structure, most opportunities for re-use will be in internal fittings. A Whole Life Carbon Assessment has been undertaken, and includes default end of life scenarios as set out with in OneClick LCA software (Mat 01) | N79: Building to be designed to be adapted for future reuse and adaptation Some thought will be needed in how to maximise the opportunities for re-use of non-structural components | O79: Fully agile and flexible operational volume from GF slab to underside of beams with large spans between columns enabling a full range of logistics uses and future proofing adjustments of uses future decades. Architect, MEP consultant and structural engineer to specify and design for re-use at the next stage. Mechanical fixing of items as opposed to bonding Opportunities to be investigated and to be reviewed with contractor | P79: Material passports will be used where possible at the next stage of detailed design to aid re-use. Product and material information including its history and potential for re-use will be incorporated for all key elements into the BIM model. Achieve Wst 06 Credit
D80: Module D - Benefits and Loads Beyond the System Boundary | E80: Concrete elements to be crushed to aggregates | F80: Concrete elements can be crushed to aggregates | I80: Supplier takeback schemes should be considered for end of life. Noted that the MEP design cannot really provide any influence on this aspect. | J80: Waste segregation to be provided for all uses | L80: Opportunities to be investigated. and to be reviewed with contractor | M80: Refer to sections on Module C, Due to the need for a concrete frame as the most efficient non-combustible structure, most opportunities for re-use will be in internal fittings. | N80: Refer to sections on Module C Supplier takeback schemes to be considered, this might have cost impact and limit supplier choice. | O80: Refer to sections on Module C Concrete elements to be crushed to aggregates. Internal finishing materials to be reused elsewhere if in good condition. | P80: Refer to sections on Module C. Opportunities to be investigated and to be reviewed with contractor
B81: Designing for longevity | E81: - Sand surfacing around play equipment, rather than grass. A durable ground material that is not worn through use. - The hammock and play huts are off-The-shelf products, from A local supplier who can carry out maintenance and replace parts should they be required. Balancing play equipment (boulders, ‘fallen’ logs and Balancing stumps) are all easy to replace natural products. - Seating around The site is composed of A brick structural base with timber batten seating attached to The top face. timber battens will be regular sized and easy to replace should damage or wear occur. | F81: The building will benefit from the thermal mass properties of concrete throughout its design life post-construction to offset carbon as a result of the new development. | H81: Priorotise use of self-finishing products; metal and bricks; reduce coatings; design details to avoid weathering | I81: Work undertaken during the early stages of design did not identify any, suitable heat network within the area, however the energy strategy developed utilises heat pump technology throughout which is expected to align with current and future design standards providing longevity in terms of the services strategies within the scheme. | J81: Use of durable materials | L81: Opportunities to be investigated. and to be reviewed with contractor | M81: A lean approach to finishes in shared spaces as well as more durable finishes generally. Aim to achieve credits under Mat 05 Designing for durability and resilience and Wst 05 Adaptation to climate change | N81: Building structure to be designed to balance a long lifespan and low embodied carbon. Designing or specifying fittings for longevity without impacting on viability will be a challenge to overcome when the scheme is looked at in more detail at the next stage. | O81: A minimum of a 100 year plus structural design to be achieved, which will significantly reduce the embodied carbon footprint when measured from construction and into its long life of highly flexible uses. Use of durable materials that can withstand weathering. Flexibility and adaptability extends lifetime of spaces and reduces decay Architect to work closely with the client/ operator to achieve reusability, adaptability, and longevity | P81: Opportunities to be investigated. and to o be reviewed with contractor Performance will be monitored at the point of specification and implementation will be verified based on the As Built Information to be included in either the O&M Manual. Achieve Mat 05 and Wst 05 Credits
B82: Designing for adaptability or flexibility | E82: - Low brick walls are throughout the landscape, often serving dual functions. E.g. retaining walls, seating and soft-thresholds. - The paved spill-out area from the commercial space into the student courtyard is designed so that it would be possible to separate from the student space with a fenced boundary, should this separation be required in the future | F82: The load allowances are such that the student accommodation could be converted to either residential/hotel use with minimal construction works to the frame. The Industrial box has a higher degree of flexibility in change of use as it has been designed for high floor loadings and large clear spans. The concrete slabs give good flexibility for the introduction of new builders work holes in future. A movement joint has been incorporated between the student/residential accommodation to allow future flexibility should part of the structure need to be demolished. | H82: Façade modularization princiapls to be explored during the next stage | I82: The MEP design will be sympathetic towards the use of modular approaches, such as pre-fabricated pod bathrooms, and pre-fabricated utility cupboards. In general the approach to modular construction will be governed by the contractor. | J82: Maximise modularisation and off-site fabrication where possible | L82: Opportunities to be investigated. and to be reviewed with contractor | M82: Multi options for adaptability of the proposed building. This includes converting the co-living space to residential or to a hotel. With additional options for adaptation for Industrial space depending on future use. There are further options for adaptations including the Plant and Servicing areas, Facade replacement, an in internal reconfiguration and a vertical/horizontal extension Refer to the separate report on adaptability for more information. (Wst 06) | N82: Finding the optimum layout for future uses Fully agile and flexible operational volume from GF slab to underside of beams with large spans between columns enabling a full range of logistics uses and future proofing adjustments of uses future decades. | O82: Fully agile and flexible operational volume from GF slab to underside of beams with large spans between columns enabling a full range of logistics uses and future proofing adjustments of uses future decades. Maximise modularisation of façade and elements within (such as windows, ventilation panels, etc.) Spaces designed to be flexible and adaptable, allowing for different uses and extending lifetime of spaces Large structural grids allow for flexibility | P82: Achieve Wst 06 Credits at both concept design and technical design Disassembly strategies and opportunities to be reviewed and investigated with contractor.
B83: Designing for disassembly | E83: Module style brick and timber seating | H83: Bolted connections for balconies and deck access allow for disassembly | I83: The MEP design will be sympathetic towards adopting a standardised approach allowing modular component parts (for example valve sets, pre-fabricated drainage pipework, riser modules) to be utilised. | J83: Disassembly strategy to be reviewed | L83: Opportunities to be investigated. and to be reviewed with contractor | M83: Refer to the notes on material passports. This will effectively provide a materials bank to enable potential re-use in future projects on this or other sites. Irreversible fixing methods that restrict disassembly and re-use are to be avoided. For example, use of adhesives should be restricted where practical. Aim to achieve two credits under Wst 06 Design for Disassembly and Functional Adaptability | N83: Maximize the use of standardised components and avoid design solutions which constrain disassembly/recoverability. The rainscreen façade to be designed for ease of disassembly Mechanical fixing of items as opposed to bonding. | O83: Disassembly/recoverability review during detailed design (structural engineer, architect, contractor input) Column free canopy over ramp and holding zone, cantilevered acoustic canopy to be steel frame to prioritise disassembly potential. Curtain wall systems to proioritise for ease of disassembly. Steelwork connections will be designed as bolted | P83: Aim to achieve two credits under Wst 06 Design for Disassembly and Functional Adaptability Performance will be monitored at the point of specification and implementation will be verified based on the As Built information Information to be included in either the O&M or Building User Guide. Achieve Wst 06 Credits
B84: Using systems, elements or materials that can be re-used and recycled | E84: Use of more readily recycled materials: Timber play equipment and brick pavers | F84: With the use of precast components, through careful demolition, whole sections can be reused for other developments, reducing the embodied carbon of future construction work. | H84: Use metals with little coating to allow recyclability; use recycled aluminium; use recycled bricks where possible; consider glass made with post-consumer recycled content; | I84: Supplier takeback schemes should be considered for end of life. Noted that the MEP design cannot really provide any influence on this aspect. | J84: High recycled content Plasterboard to be considered | L84: Opportunities to be investigated. and to be reviewed with contractor | M84: Targeting 4 credits under Mat 03 Responsible Sourcing of Construction Products. The development of a sustainable procurement plan for substructure, superstructure, internal finishes, and hard landscaping. | N84: Availability of recyclable construction materials. Potential of regional supply shortages of materials such as blast-furnace slag by-product due to reduced slag output. Commercial viability of the scheme may be compromised by tightly specifying materials with overly ambitious sustainability credentials at this stage. Costing of responsible materials. Lack of available material within UK and its closed borders. | O84: Design Team to ensure that product selection at the point of specification has high ambitions for sustainability and include performance requirements within tender information. | P84: Performance will be monitored at the point of specification and implementation will be verified based on the As Built information Achievement of 4 Credits for Mat 03
B87: Bill of Materials
B88: Please click the + symbol to the left hand side of the Bill of Materials table to view or hide the input rows for each Building Element Category. The rows for substructure and frame have been unhidden to highlight this. A fixed number of rows has been provided for each Building Element Category based on a sub-set of typical WLCA submissions. Should the number of rows provided not be sufficient to allow input of all materials for a given Building Element Category, Applicants should prioritise the inclusion of the materials with the highest quantity.
C89: BUILDING ELEMENT CATEGORY - LEVEL 1 (based on the RICS New Rules of Measurement (NRM) classification system level 2 sub-elements https://www.rics.org/globalassets/rics-website/media/products/data-products/bcis-construction/bcis-elemental-standard-form-cost-analysis-4th-nrm-edition-2012.pdf) | E89: PRODUCT AND CONSTRUCTION STAGE (MODULE A) | M89: USE STAGE (MODULE B) | R89: END OF LIFE STAGE (MODULE C) | W89: BENEFITS BEYOND THE SYSTEM BOUNDARY (MODULE D)
C90: Building Element Category | E90: Material Type | F90: Material quantity (Module A) (kg) | G90: Material intensity (Module A) (kg/m2 GIA) | H90: Performance Indicator (LPG Appendix 1) | I90: Construction Waste Factor (Module A) | J90: Construction Waste (Module A) (kg) | K90: Recycled Content by mass (kg) | L90: Recycled Content by value (%) | M90: Expected Lifespan (years) | N90: Number of Replacements (over assumed 60-year period) | O90: Repair and Replacement quantities of materials (Module B) (kg) | P90: Construction Waste Factor (Module B) | Q90: Construction Waste (Module B) (kg) | R90: Design for Disassembly | S90: Assumed End of Life Scenario (Description) | T90: % Reusing | U90: % Recycling | V90: % Landfill | W90: Estimated reusable materials (kg) | X90: Estimated reusable materials intensity (kg/m2 GIA) | Y90: Estimated recyclable materials (kg) | Z90: Estimated recyclable materials intensity (kg/m2 GIA)
B91: 0.1 | C91: Demolition: Toxic/Hazardous/Contaminated Material Treatment | E91: - | F91: =SUM(F92:F106) -> 0 | G91: =IF(AND(F91<>0,$D$31<>0),F91/$D$31,0) -> 0 | H91: - | I91: - | J91: =SUM(J92:J106) -> 0 | K91: - | L91: - | M91: - | N91: - | O91: =SUM(O92:O106) -> 0 | P91: - | Q91: =SUM(Q92:Q106) -> 0 | R91: - | S91: - | T91: =IF(W91<>0,W91/($F$91+$O$91),0) -> 0 | U91: =IF(Y91<>0,Y91/($F$91+$O$91),0) -> 0 | V91: =1-T91-U91 -> 1 | W91: =SUM(W92:W106) -> 0 | X91: =IF(AND(W91<>0,$D$31<>0),W91/$D$31,0) -> 0 | Y91: =SUM(Y92:Y106) -> 0 | Z91: =IF(AND(Y91<>0,$D$31<>0),Y91/$D$31,0) -> 0
B92: 0.1 | C92: Demolition: Toxic/Hazardous/Contaminated Material Treatment | G92: =IF(AND(F92<>0,$D$31<>0),F92/$D$31,0) -> 0 | H92: - | I92: 0 | J92: =F92*I92 -> 0 | N92: =IF(M92<>0,INT(59/M92),0) -> 0 | O92: =F92*N92 -> 0 | P92: 0 | Q92: =O92*P92 -> 0 | T92: 0 | U92: 0 | V92: =1-T92-U92 -> 1 | W92: =T92*(F92+O92) -> 0 | X92: =IF(AND(W92<>0,$D$31<>0),W92/$D$31,0) -> 0 | Y92: =U92*(F92+O92) -> 0 | Z92: =IF(AND(Y92<>0,$D$31<>0),Y92/$D$31,0) -> 0
G93: =IF(AND(F93<>0,$D$31<>0),F93/$D$31,0) -> 0 | H93: - | I93: 0 | J93: =F93*I93 -> 0 | N93: =IF(M93<>0,INT(59/M93),0) -> 0 | O93: =F93*N93 -> 0 | P93: 0 | Q93: =O93*P93 -> 0 | T93: 0 | U93: 0 | V93: =1-T93-U93 -> 1 | W93: =T93*(F93+O93) -> 0 | X93: =IF(AND(W93<>0,$D$31<>0),W93/$D$31,0) -> 0 | Y93: =U93*(F93+O93) -> 0 | Z93: 0
G94: 0 | H94: - | I94: 0 | J94: 0 | N94: 0 | O94: 0 | P94: 0 | Q94: 0 | T94: 0 | U94: 0 | V94: 1 | W94: 0 | X94: 0 | Y94: 0 | Z94: 0
G95: 0 | H95: - | I95: 0 | J95: 0 | N95: 0 | O95: 0 | P95: 0 | Q95: 0 | T95: 0 | U95: 0 | V95: 1 | W95: 0 | X95: 0 | Y95: 0 | Z95: 0
G96: 0 | H96: - | I96: 0 | J96: 0 | N96: 0 | O96: 0 | P96: 0 | Q96: 0 | T96: 0 | U96: 0 | V96: 1 | W96: 0 | X96: 0 | Y96: 0 | Z96: 0
G97: 0 | H97: - | I97: 0 | J97: 0 | N97: 0 | O97: 0 | P97: 0 | Q97: 0 | T97: 0 | U97: 0 | V97: 1 | W97: 0 | X97: 0 | Y97: 0 | Z97: 0
G98: 0 | H98: - | I98: 0 | J98: 0 | N98: 0 | O98: 0 | P98: 0 | Q98: 0 | T98: 0 | U98: 0 | V98: 1 | W98: 0 | X98: 0 | Y98: 0 | Z98: 0
G99: 0 | H99: - | I99: 0 | J99: 0 | N99: 0 | O99: 0 | P99: 0 | Q99: 0 | T99: 0 | U99: 0 | V99: 1 | W99: 0 | X99: 0 | Y99: 0 | Z99: 0
G100: 0 | H100: - | I100: 0 | J100: 0 | N100: 0 | O100: 0 | P100: 0 | Q100: 0 | T100: 0 | U100: 0 | V100: 1 | W100: 0 | X100: 0 | Y100: 0 | Z100: 0
G101: 0 | H101: - | I101: 0 | J101: 0 | N101: 0 | O101: 0 | P101: 0 | Q101: 0 | T101: 0 | U101: 0 | V101: 1 | W101: 0 | X101: 0 | Y101: 0 | Z101: 0
G102: 0 | H102: - | I102: 0 | J102: 0 | N102: 0 | O102: 0 | P102: 0 | Q102: 0 | T102: 0 | U102: 0 | V102: 1 | W102: 0 | X102: 0 | Y102: 0 | Z102: 0
G103: 0 | H103: - | I103: 0 | J103: 0 | N103: 0 | O103: 0 | P103: 0 | Q103: 0 | T103: 0 | U103: 0 | V103: 1 | W103: 0 | X103: 0 | Y103: 0 | Z103: 0
G104: 0 | H104: - | I104: 0 | J104: 0 | N104: 0 | O104: 0 | P104: 0 | Q104: 0 | T104: 0 | U104: 0 | V104: 1 | W104: 0 | X104: 0 | Y104: 0 | Z104: 0
G105: 0 | H105: - | I105: 0 | J105: 0 | N105: 0 | O105: 0 | P105: 0 | Q105: 0 | T105: 0 | U105: 0 | V105: 1 | W105: 0 | X105: 0 | Y105: 0 | Z105: 0
G106: 0 | H106: - | I106: 0 | J106: 0 | N106: 0 | O106: 0 | P106: 0 | Q106: 0 | T106: 0 | U106: 0 | V106: 1 | W106: 0 | X106: 0 | Y106: 0 | Z106: 0
B107: 0.2 | C107: Major Demolition Works | E107: - | F107: =SUM(F108:F122) -> 3233210.02 | G107: =IF(AND(F107<>0,$D$31<>0),F107/$D$31,0) -> 327.2811034 | H107: - | I107: - | J107: =SUM(J108:J122) -> 0 | K107: - | L107: - | M107: - | N107: - | O107: =SUM(O108:O122) -> 0 | P107: - | Q107: =SUM(Q108:Q122) -> 0 | R107: - | S107: - | T107: =IF(W107<>0,W107/($F$107+$O$107),0) -> 0 | U107: =IF(Y107<>0,Y107/($F$107+$O$107),0) -> 0.95 | V107: =1-T107-U107 -> 0.05 | W107: =SUM(W108:W122) -> 0 | X107: 0 | Y107: =SUM(Y108:Y122) -> 3071549.519 | Z107: 310.9170482
B108: 0.2 | C108: Major Demolition Works | E108: Concrete (inc. foundations) | F108: 2762811.59 | G108: =IF(AND(F108<>0,$D$31<>0),F108/$D$31,0) -> 279.6651068 | H108: - | J108: =I108*F108 -> 0 | K108: n/a | M108: 60 | N108: =IF(M108<>0,INT(59/M108),0) -> 0 | O108: =F108*N108 -> 0 | P108: 0 | Q108: =O108*P108 -> 0 | S108: offsite recycling | T108: 0 | U108: 0.95 | V108: 0.05 | W108: 0 | X108: 0 | Y108: 2624671.01 | Z108: 265.6818515
E109: Brick/ceramics tiles | F109: 102295.4 | G109: =IF(AND(F109<>0,$D$31<>0),F109/$D$31,0) -> 10.35483349 | H109: - | J109: 0 | K109: n/a | M109: 60 | N109: =IF(M109<>0,INT(59/M109),0) -> 0 | O109: =F109*N109 -> 0 | P109: 0 | Q109: =O109*P109 -> 0 | S109: offsite recycling | T109: 0 | U109: 0.95 | V109: 0.05 | W109: 0 | X109: 0 | Y109: 97180.63 | Z109: 9.837091811
E110: Glass | F110: 350 | G110: =IF(AND(F110<>0,$D$31<>0),F110/$D$31,0) -> 0.03542868711 | H110: - | J110: 0 | K110: n/a | M110: 60 | N110: 0 | O110: 0 | P110: 0 | Q110: 0 | S110: offsite recycling | T110: 0 | U110: 0.95 | V110: 0.05 | W110: 0 | X110: 0 | Y110: 332.5 | Z110: 0.03365725276
E111: Carpet (Tiles) | F111: 4873 | G111: 0.4932685494 | H111: - | J111: 0 | K111: n/a | M111: 60 | N111: 0 | O111: 0 | P111: 0 | Q111: 0 | S111: offsite recycling | T111: 0 | U111: 0.95 | V111: 0.05 | W111: 0 | X111: 0 | Y111: 4629.35 | Z111: 0.468605122
E112: Plasterboard (gypsum based) | F112: 115552.77 | G112: 11.69680838 | H112: - | J112: 0 | K112: n/a | M112: 60 | N112: 0 | O112: 0 | P112: 0 | Q112: 0 | S112: offsite recycling | T112: 0 | U112: 0.95 | V112: 0.05 | W112: 0 | X112: 0 | Y112: 109775.1315 | Z112: 11.11196796
E113: Timber | F113: 2902.17 | G113: 0.2937716368 | H113: - | J113: 0 | K113: n/a | M113: 60 | N113: 0 | O113: 0 | P113: 0 | Q113: 0 | S113: offsite recycling | T113: 0 | U113: 0.95 | V113: 0.05 | W113: 0 | X113: 0 | Y113: 2757.0615 | Z113: 0.279083055
E114: Metal | F114: 149631.79 | G114: 15.14645106 | H114: - | J114: 0 | K114: n/a | M114: 60 | N114: 0 | O114: 0 | P114: 0 | Q114: 0 | S114: offsite recycling | T114: 0 | U114: 0.95 | V114: 0.05 | W114: 0 | X114: 0 | Y114: 142150.2005 | Z114: 14.3891285
E115: Insulation | F115: 35206.56 | G115: 3.56377771 | H115: - | J115: 0 | K115: n/a | M115: 60 | N115: 0 | O115: 0 | P115: 0 | Q115: 0 | S115: offsite recycling | T115: 0 | U115: 0.95 | V115: 0.05 | W115: 0 | X115: 0 | Y115: 33446.232 | Z115: 3.385588825
E116: Other Products (Fixtures & Fittings, inc. carpet) | F116: 59586.74 | G116: 6.03165705 | H116: - | J116: 0 | K116: n/a | M116: 60 | N116: 0 | O116: 0 | P116: 0 | Q116: 0 | S116: offsite recycling | T116: 0 | U116: 0.95 | V116: 0.05 | W116: 0 | X116: 0 | Y116: 56607.403 | Z116: 5.730074198
G117: 0 | H117: - | J117: 0 | N117: 0 | O117: 0 | P117: 0 | Q117: 0 | V117: 1 | W117: 0 | X117: 0 | Y117: 0 | Z117: 0
G118: 0 | H118: - | J118: 0 | N118: 0 | O118: 0 | P118: 0 | Q118: 0 | V118: 1 | W118: 0 | X118: 0 | Y118: 0 | Z118: 0
G119: 0 | H119: - | J119: 0 | N119: 0 | O119: 0 | P119: 0 | Q119: 0 | V119: 1 | W119: 0 | X119: 0 | Y119: 0 | Z119: 0
G120: 0 | H120: - | J120: 0 | N120: 0 | O120: 0 | P120: 0 | Q120: 0 | V120: 1 | W120: 0 | X120: 0 | Y120: 0 | Z120: 0
G121: 0 | H121: - | J121: 0 | N121: 0 | O121: 0 | P121: 0 | Q121: 0 | V121: 1 | W121: 0 | X121: 0 | Y121: 0 | Z121: 0
G122: 0 | H122: - | J122: 0 | N122: 0 | O122: 0 | P122: 0 | Q122: 0 | V122: 1 | W122: 0 | X122: 0 | Y122: 0 | Z122: 0
B123: 0.3 | C123: Temporary Support to Adjacent Structures | E123: - | F123: =SUM(F124:F138) -> 0 | G123: =IF(AND(F123<>0,$D$31<>0),F123/$D$31,0) -> 0 | H123: - | I123: - | J123: =SUM(J124:J138) -> 0 | K123: - | L123: - | M123: - | N123: - | O123: =SUM(O124:O138) -> 0 | P123: - | Q123: =SUM(Q124:Q138) -> 0 | R123: - | S123: - | T123: =IF(W123<>0,W123/($F$123+$O$123),0) -> 0 | U123: =IF(Y123<>0,Y123/($F$123+$O$123),0) -> 0 | V123: 1 | W123: =SUM(W124:W138) -> 0 | X123: 0 | Y123: =SUM(Y124:Y138) -> 0 | Z123: 0
B124: 0.3 | C124: Temporary Support to Adjacent Structures | G124: =IF(AND(F124<>0,$D$31<>0),F124/$D$31,0) -> 0 | H124: - | I124: 0 | J124: =I124*F124 -> 0 | N124: =IF(M124<>0,INT(59/M124),0) -> 0 | O124: =F124*N124 -> 0 | P124: 0 | Q124: =O124*P124 -> 0 | T124: 0 | U124: 0 | V124: 1 | W124: 0 | X124: 0 | Y124: 0 | Z124: 0
G125: =IF(AND(F125<>0,$D$31<>0),F125/$D$31,0) -> 0 | H125: - | I125: 0 | J125: 0 | N125: =IF(M125<>0,INT(59/M125),0) -> 0 | O125: =F125*N125 -> 0 | P125: 0 | Q125: =O125*P125 -> 0 | T125: 0 | U125: 0 | V125: 1 | W125: 0 | X125: 0 | Y125: 0 | Z125: 0
G126: =IF(AND(F126<>0,$D$31<>0),F126/$D$31,0) -> 0 | H126: - | I126: 0 | J126: 0 | N126: 0 | O126: 0 | P126: 0 | Q126: 0 | T126: 0 | U126: 0 | V126: 1 | W126: 0 | X126: 0 | Y126: 0 | Z126: 0
G127: 0 | H127: - | I127: 0 | J127: 0 | N127: 0 | O127: 0 | P127: 0 | Q127: 0 | T127: 0 | U127: 0 | V127: 1 | W127: 0 | X127: 0 | Y127: 0 | Z127: 0
G128: 0 | H128: - | I128: 0 | J128: 0 | N128: 0 | O128: 0 | P128: 0 | Q128: 0 | T128: 0 | U128: 0 | V128: 1 | W128: 0 | X128: 0 | Y128: 0 | Z128: 0
G129: 0 | H129: - | I129: 0 | J129: 0 | N129: 0 | O129: 0 | P129: 0 | Q129: 0 | T129: 0 | U129: 0 | V129: 1 | W129: 0 | X129: 0 | Y129: 0 | Z129: 0
G130: 0 | H130: - | I130: 0 | J130: 0 | N130: 0 | O130: 0 | P130: 0 | Q130: 0 | T130: 0 | U130: 0 | V130: 1 | W130: 0 | X130: 0 | Y130: 0 | Z130: 0
G131: 0 | H131: - | I131: 0 | J131: 0 | N131: 0 | O131: 0 | P131: 0 | Q131: 0 | T131: 0 | U131: 0 | V131: 1 | W131: 0 | X131: 0 | Y131: 0 | Z131: 0
G132: 0 | H132: - | I132: 0 | J132: 0 | N132: 0 | O132: 0 | P132: 0 | Q132: 0 | T132: 0 | U132: 0 | V132: 1 | W132: 0 | X132: 0 | Y132: 0 | Z132: 0
G133: 0 | H133: - | I133: 0 | J133: 0 | N133: 0 | O133: 0 | P133: 0 | Q133: 0 | T133: 0 | U133: 0 | V133: 1 | W133: 0 | X133: 0 | Y133: 0 | Z133: 0
G134: 0 | H134: - | I134: 0 | J134: 0 | N134: 0 | O134: 0 | P134: 0 | Q134: 0 | T134: 0 | U134: 0 | V134: 1 | W134: 0 | X134: 0 | Y134: 0 | Z134: 0
G135: 0 | H135: - | I135: 0 | J135: 0 | N135: 0 | O135: 0 | P135: 0 | Q135: 0 | T135: 0 | U135: 0 | V135: 1 | W135: 0 | X135: 0 | Y135: 0 | Z135: 0
G136: 0 | H136: - | I136: 0 | J136: 0 | N136: 0 | O136: 0 | P136: 0 | Q136: 0 | T136: 0 | U136: 0 | V136: 1 | W136: 0 | X136: 0 | Y136: 0 | Z136: 0
G137: 0 | H137: - | I137: 0 | J137: 0 | N137: 0 | O137: 0 | P137: 0 | Q137: 0 | T137: 0 | U137: 0 | V137: 1 | W137: 0 | X137: 0 | Y137: 0 | Z137: 0
G138: 0 | H138: - | I138: 0 | J138: 0 | N138: 0 | O138: 0 | P138: 0 | Q138: 0 | T138: 0 | U138: 0 | V138: 1 | W138: 0 | X138: 0 | Y138: 0 | Z138: 0
B139: 0.4 | C139: Specialist Ground Works | E139: - | F139: =SUM(F140:F154) -> 0 | G139: =IF(AND(F139<>0,$D$31<>0),F139/$D$31,0) -> 0 | H139: - | I139: - | J139: =SUM(J140:J154) -> 0 | K139: - | L139: - | M139: - | N139: - | O139: =SUM(O140:O154) -> 0 | P139: - | Q139: =SUM(Q140:Q154) -> 0 | R139: - | S139: - | T139: =IF(W139<>0,W139/($F$139+$O$139),0) -> 0 | U139: =IF(Y139<>0,Y139/($F$139+$O$139),0) -> 0 | V139: 1 | W139: =SUM(W140:W154) -> 0 | X139: 0 | Y139: =SUM(Y140:Y154) -> 0 | Z139: 0
B140: 0.4 | C140: Specialist Ground Works | G140: =IF(AND(F140<>0,$D$31<>0),F140/$D$31,0) -> 0 | H140: - | I140: 0 | J140: =I140*F140 -> 0 | N140: =IF(M140<>0,INT(59/M140),0) -> 0 | O140: =F140*N140 -> 0 | P140: 0 | Q140: =O140*P140 -> 0 | T140: 0 | U140: 0 | V140: 1 | W140: 0 | X140: 0 | Y140: 0 | Z140: 0
G141: =IF(AND(F141<>0,$D$31<>0),F141/$D$31,0) -> 0 | H141: - | I141: 0 | J141: 0 | N141: =IF(M141<>0,INT(59/M141),0) -> 0 | O141: =F141*N141 -> 0 | P141: 0 | Q141: =O141*P141 -> 0 | T141: 0 | U141: 0 | V141: 1 | W141: 0 | X141: 0 | Y141: 0 | Z141: 0
G142: =IF(AND(F142<>0,$D$31<>0),F142/$D$31,0) -> 0 | H142: - | I142: 0 | J142: 0 | N142: 0 | O142: 0 | P142: 0 | Q142: 0 | T142: 0 | U142: 0 | V142: 1 | W142: 0 | X142: 0 | Y142: 0 | Z142: 0
G143: 0 | H143: - | I143: 0 | J143: 0 | N143: 0 | O143: 0 | P143: 0 | Q143: 0 | T143: 0 | U143: 0 | V143: 1 | W143: 0 | X143: 0 | Y143: 0 | Z143: 0
G144: 0 | H144: - | I144: 0 | J144: 0 | N144: 0 | O144: 0 | P144: 0 | Q144: 0 | T144: 0 | U144: 0 | V144: 1 | W144: 0 | X144: 0 | Y144: 0 | Z144: 0
G145: 0 | H145: - | I145: 0 | J145: 0 | N145: 0 | O145: 0 | P145: 0 | Q145: 0 | T145: 0 | U145: 0 | V145: 1 | W145: 0 | X145: 0 | Y145: 0 | Z145: 0
G146: 0 | H146: - | I146: 0 | J146: 0 | N146: 0 | O146: 0 | P146: 0 | Q146: 0 | T146: 0 | U146: 0 | V146: 1 | W146: 0 | X146: 0 | Y146: 0 | Z146: 0
G147: 0 | H147: - | I147: 0 | J147: 0 | N147: 0 | O147: 0 | P147: 0 | Q147: 0 | T147: 0 | U147: 0 | V147: 1 | W147: 0 | X147: 0 | Y147: 0 | Z147: 0
G148: 0 | H148: - | I148: 0 | J148: 0 | N148: 0 | O148: 0 | P148: 0 | Q148: 0 | T148: 0 | U148: 0 | V148: 1 | W148: 0 | X148: 0 | Y148: 0 | Z148: 0
G149: 0 | H149: - | I149: 0 | J149: 0 | N149: 0 | O149: 0 | P149: 0 | Q149: 0 | T149: 0 | U149: 0 | V149: 1 | W149: 0 | X149: 0 | Y149: 0 | Z149: 0
G150: 0 | H150: - | I150: 0 | J150: 0 | N150: 0 | O150: 0 | P150: 0 | Q150: 0 | T150: 0 | U150: 0 | V150: 1 | W150: 0 | X150: 0 | Y150: 0 | Z150: 0
G151: 0 | H151: - | I151: 0 | J151: 0 | N151: 0 | O151: 0 | P151: 0 | Q151: 0 | T151: 0 | U151: 0 | V151: 1 | W151: 0 | X151: 0 | Y151: 0 | Z151: 0
G152: 0 | H152: - | I152: 0 | J152: 0 | N152: 0 | O152: 0 | P152: 0 | Q152: 0 | T152: 0 | U152: 0 | V152: 1 | W152: 0 | X152: 0 | Y152: 0 | Z152: 0
G153: 0 | H153: - | I153: 0 | J153: 0 | N153: 0 | O153: 0 | P153: 0 | Q153: 0 | T153: 0 | U153: 0 | V153: 1 | W153: 0 | X153: 0 | Y153: 0 | Z153: 0
G154: 0 | H154: - | I154: 0 | J154: 0 | N154: 0 | O154: 0 | P154: 0 | Q154: 0 | T154: 0 | U154: 0 | V154: 1 | W154: 0 | X154: 0 | Y154: 0 | Z154: 0
B155: 1 | C155: Substructure | E155: - | F155: =SUM(F156:F175) -> 13057226.4 | G155: =IF(AND(F155<>0,$D$31<>0),F155/$D$31,0) -> 1321.715396 | H155: =SUMPRODUCT((C91:D454="Substructure")*G91:G454) -> 1324.752141 | I155: - | J155: =SUM(J156:J175) -> 313972.33 | K155: - | L155: - | M155: - | N155: - | O155: =SUM(O156:O175) -> 0 | P155: - | Q155: =SUM(Q156:Q175) -> 0 | R155: - | S155: - | T155: =IF(W155<>0,W155/($F$155+$O$155),0) -> 0 | U155: =IF(Y155<>0,Y155/($F$155+$O$155),0) -> 0.95 | V155: 0.05 | W155: =SUM(W156:W175) -> 0 | X155: 0 | Y155: =SUM(Y156:Y175) -> 12404365.08 | Z155: 1255.629626
B156: 1 | C156: Substructure | E156: Carbon steel reinforcing bar (rebar) (secondary production route – scrap), 7850 kg/m3 (Speciality Steel UK Limited (T/A Liberty Speciality Steels) - Rotherham Steel & Bar (member of UK CARES)) | F156: 30000 | G156: =IF(AND(F156<>0,$D$31<>0),F156/$D$31,0) -> 3.03674461 | H156: - | I156: 0.0485 | J156: =I156*F156 -> 1455 | K156: 29400 | L156: 0.98 | M156: 60 | N156: =IF(M156<>0,INT(59/M156),0) -> 0 | O156: =F156*N156 -> 0 | Q156: =O156*P156 -> 0 | R156: No | S156: offsite recycling | T156: 0 | U156: 0.95 | V156: 0.05 | W156: 0 | X156: 0 | Y156: 28500 | Z156: 2.884907379
E157: Carbon steel reinforcing bar (rebar) (secondary production route – scrap), 7850 kg/m3 (Speciality Steel UK Limited (T/A Liberty Speciality Steels) - Rotherham Steel & Bar (member of UK CARES)) | F157: 63200 | G157: =IF(AND(F157<>0,$D$31<>0),F157/$D$31,0) -> 6.397408645 | H157: - | I157: 0.0485 | J157: 3065.2 | K157: 61936 | L157: 0.98 | M157: 60 | N157: =IF(M157<>0,INT(59/M157),0) -> 0 | O157: =F157*N157 -> 0 | Q157: =O157*P157 -> 0 | R157: No | S157: offsite recycling | T157: 0 | U157: 0.95 | V157: =1-T157-U157 -> 0.05 | W157: =T157*(F157+O157) -> 0 | X157: =IF(AND(W157<>0,$D$31<>0),W157/$D$31,0) -> 0 | Y157: =U157*(F157+O157) -> 60040 | Z157: 6.077538212
E158: Carbon steel reinforcing bar (rebar) (secondary production route – scrap), 7850 kg/m3 (Speciality Steel UK Limited (T/A Liberty Speciality Steels) - Rotherham Steel & Bar (member of UK CARES)) | F158: 117500 | G158: =IF(AND(F158<>0,$D$31<>0),F158/$D$31,0) -> 11.89391639 | H158: - | I158: 0.0485 | J158: 5698.75 | K158: 115150 | L158: 0.98 | M158: 60 | N158: 0 | O158: 0 | Q158: 0 | R158: No | S158: offsite recycling | T158: 0 | U158: 0.95 | V158: 0.05 | W158: 0 | X158: 0 | Y158: 111625 | Z158: 11.29922057
E159: Carbon steel reinforcing bar (rebar) (secondary production route – scrap), 7850 kg/m3 (Speciality Steel UK Limited (T/A Liberty Speciality Steels) - Rotherham Steel & Bar (member of UK CARES)) | F159: 132800 | G159: 13.44265614 | H159: - | I159: 0.0485 | J159: 6440.8 | K159: 130144 | L159: 0.98 | M159: 60 | N159: 0 | O159: 0 | Q159: 0 | R159: No | S159: offsite recycling | T159: 0 | U159: 0.95 | V159: 0.05 | W159: 0 | X159: 0 | Y159: 126160 | Z159: 12.77052333
E160: XPS insulation board, 0.033 W/mK, 31 kg/m3, Floorboard Standard, Laminating Board, Upstand Board (Polyfoam XPS Ltd (2021)) | F160: 9374.4 | G160: 0.9489219557 | H160: - | I160: 0.04000042669 | J160: 374.98 | K160: 0 | L160: 0 | M160: 60 | N160: 0 | O160: 0 | Q160: 0 | R160: No | S160: offsite recycling | T160: 0 | U160: 0.95 | V160: 0.05 | W160: 0 | X160: 0 | Y160: 8905.68 | Z160: 0.9014758579
E161: Concrete blocks with paint finish, 7.3 MPa, 100-140 mm, 141.6 kg/m2, Synerg Eco (Plasmor Limited) | F161: 101952 | G161: 10.32007288 | H161: - | I161: 0.05 | J161: 5097.6 | K161: 20390.4 | L161: 0.2 | M161: 60 | N161: 0 | O161: 0 | Q161: 0 | R161: No | S161: offsite recycling | T161: 0 | U161: 0.95 | V161: 0.05 | W161: 0 | X161: 0 | Y161: 96854.4 | Z161: 9.804069238
E162: Excavation works, kg or m3 of removed masses (Required for IMPACT calculations) | F162: 5306400 | G162: 537.1393866 | H162: - | I162: 0 | J162: 0 | K162: 1326600 | L162: 0.25 | M162: 60 | N162: 0 | O162: 0 | Q162: 0 | R162: No | S162: offsite recycling | T162: 0 | U162: 0.95 | V162: 0.05 | W162: 0 | X162: 0 | Y162: 5041080 | Z162: 510.2824172
E163: Ready-mix concrete, normal strength, generic, C32/40 (4600/5800 PSI) with CEM II/B-V, 30% GGBS content in cement (300 kg/m3; 18.7 lbs/ft3 total cement) (One Click LCA) | F163: 288000 | G163: 29.15274825 | H163: - | I163: 0.04 | J163: 11520 | K163: 57600 | L163: 0.2 | M163: 60 | N163: 0 | O163: 0 | Q163: 0 | R163: No | S163: offsite recycling | T163: 0 | U163: 0.95 | V163: 0.05 | W163: 0 | X163: 0 | Y163: 273600 | Z163: 27.69511084
E164: Ready-mix concrete, normal strength, generic, C32/40 (4600/5800 PSI) with CEM II/B-V, 30% GGBS content in cement (300 kg/m3; 18.7 lbs/ft3 total cement) (One Click LCA) | F164: 1128000 | G164: 114.1815973 | H164: - | I164: 0.04 | J164: 45120 | K164: 225600 | L164: 0.2 | M164: 60 | N164: 0 | O164: 0 | Q164: 0 | R164: No | S164: offsite recycling | T164: 0 | U164: 0.95 | V164: 0.05 | W164: 0 | X164: 0 | Y164: 1071600 | Z164: 108.4725175
E165: Ready-mix concrete, normal strength, generic, C32/40 (4600/5800 PSI) with CEM II/B-V, 30% GGBS content in cement (300 kg/m3; 18.7 lbs/ft3 total cement) (One Click LCA) | F165: 1896000 | G165: 191.9222593 | H165: - | I165: 0.04 | J165: 75840 | K165: 379200 | L165: 0.2 | M165: 60 | N165: 0 | O165: 0 | Q165: 0 | R165: No | S165: offsite recycling | T165: 0 | U165: 0.95 | V165: 0.05 | W165: 0 | X165: 0 | Y165: 1801200 | Z165: 182.3261464
E166: Ready-mix concrete, normal strength, generic, C32/40 (4600/5800 PSI) with CEM II/B-V, 30% GGBS content in cement (300 kg/m3; 18.7 lbs/ft3 total cement) (One Click LCA) | F166: 3984000 | G166: 403.2796842 | H166: - | I166: 0.04 | J166: 159360 | K166: 796800 | L166: 0.2 | M166: 60 | N166: 0 | O166: 0 | Q166: 0 | R166: No | S166: offsite recycling | T166: 0 | U166: 0.95 | V166: 0.05 | W166: 0 | X166: 0 | Y166: 3784800 | Z166: 383.1157
G167: 0 | H167: - | J167: 0 | N167: 0 | O167: 0 | Q167: 0 | V167: 1 | W167: 0 | X167: 0 | Y167: 0 | Z167: 0
G168: 0 | H168: - | J168: 0 | N168: 0 | O168: 0 | Q168: 0 | V168: 1 | W168: 0 | X168: 0 | Y168: 0 | Z168: 0
G169: 0 | H169: - | J169: 0 | N169: 0 | O169: 0 | Q169: 0 | V169: 1 | W169: 0 | X169: 0 | Y169: 0 | Z169: 0
G170: =IF(AND(F170<>0,$D$31<>0),F170/$D$31,0) -> 0 | H170: - | J170: 0 | N170: 0 | O170: 0 | Q170: 0 | V170: 1 | W170: 0 | X170: 0 | Y170: 0 | Z170: 0
G171: =IF(AND(F171<>0,$D$31<>0),F171/$D$31,0) -> 0 | H171: - | J171: 0 | N171: 0 | O171: 0 | Q171: 0 | V171: 1 | W171: 0 | X171: 0 | Y171: 0 | Z171: 0
G172: =IF(AND(F172<>0,$D$31<>0),F172/$D$31,0) -> 0 | H172: - | J172: 0 | N172: 0 | O172: 0 | Q172: 0 | V172: 1 | W172: 0 | X172: 0 | Y172: 0 | Z172: 0
G173: 0 | H173: - | J173: 0 | N173: 0 | O173: 0 | Q173: 0 | V173: 1 | W173: 0 | X173: 0 | Y173: 0 | Z173: 0
G174: 0 | H174: - | J174: 0 | N174: 0 | O174: 0 | Q174: 0 | V174: 1 | W174: 0 | X174: 0 | Y174: 0 | Z174: 0
G175: =IF(AND(F175<>0,$D$31<>0),F175/$D$31,0) -> 0 | H175: - | J175: 0 | N175: =IF(M175<>0,INT(59/M175),0) -> 0 | O175: 0 | Q175: 0 | V175: 1 | W175: 0 | X175: 0 | Y175: 0 | Z175: 0
B176: 2.1 | C176: Superstructure: Frame | E176: - | F176: =SUM(F177:F196) -> 3675298.99 | G176: =IF(AND(F176<>0,$D$31<>0),F176/$D$31,0) -> 372.0314799 | H176: =SUMPRODUCT((C91:D454="Superstructure: Frame")*G91:G454) -> 372.7368145 | I176: - | J176: =SUM(J177:J196) -> 208010.21 | K176: - | L176: - | M176: - | N176: - | O176: =SUM(O177:O196) -> 0 | P176: - | Q176: =SUM(Q177:Q196) -> 0 | R176: - | S176: - | T176: =IF(W176<>0,W176/($F$176+$O$176),0) -> 0 | U176: =IF(Y176<>0,Y176/($F$176+$O$176),0) -> 0.95 | V176: 0.05 | W176: =SUM(W177:W196) -> 0 | X176: 0 | Y176: =SUM(Y177:Y196) -> 3491534.041 | Z176: 353.4299059
B177: 2.1 | C177: Superstructure: Frame | E177: Wooden formwork, single sided with steel fixtures, 26 kg/m2 (One Click LCA) | F177: 6968 | G177: =IF(AND(F177<>0,$D$31<>0),F177/$D$31,0) -> 0.705334548 | H177: - | I177: 0.1670005741 | J177: =I177*F177 -> 1163.66 | K177: 696.8 | L177: 0.1 | M177: 60 | N177: =IF(M177<>0,INT(59/M177),0) -> 0 | O177: =F177*N177 -> 0 | P177: 0 | Q177: =O177*P177 -> 0 | R177: Yes | S177: offsite recycling | T177: 0 | U177: 0.95 | V177: 0.05 | W177: 0 | X177: 0 | Y177: 6619.6 | Z177: 0.6700678206
E178: Ready-mix concrete, normal strength, generic, C32/40 (4600/5800 PSI) with CEM II/B-V, 30% GGBS content in cement (300 kg/m3; 18.7 lbs/ft3 total cement) (One Click LCA) | F178: 744000 | G178: =IF(AND(F178<>0,$D$31<>0),F178/$D$31,0) -> 75.31126632 | H178: - | I178: 0.04 | J178: 29760 | K178: 148800 | L178: 0.2 | M178: 60 | N178: =IF(M178<>0,INT(59/M178),0) -> 0 | O178: =F178*N178 -> 0 | P178: 0 | Q178: =O178*P178 -> 0 | R178: No | S178: offsite recycling | T178: 0 | U178: 0.95 | V178: 0.05 | W178: 0 | X178: 0 | Y178: 706800 | Z178: 71.54570301
E179: Ready-mix concrete, normal strength, generic, C32/40 (4600/5800 PSI) with CEM II/B-V, 30% GGBS content in cement (300 kg/m3; 18.7 lbs/ft3 total cement) (One Click LCA) | F179: 2112000 | G179: =IF(AND(F179<>0,$D$31<>0),F179/$D$31,0) -> 213.7868205 | H179: - | I179: 0.04 | J179: 84480 | K179: 422400 | L179: 0.2 | M179: 60 | N179: 0 | O179: 0 | P179: 0 | Q179: 0 | R179: No | S179: offsite recycling | T179: 0 | U179: 0.95 | V179: 0.05 | W179: 0 | X179: 0 | Y179: 2006400 | Z179: 203.0974795
E180: Wooden formwork, single sided with steel fixtures, 26 kg/m2 (One Click LCA) | F180: 457600 | G180: 46.32047778 | H180: - | I180: 0.167 | J180: 76419.2 | K180: 45760 | L180: 0.1 | M180: 60 | N180: 0 | O180: 0 | P180: 0 | Q180: 0 | R180: Yes | S180: offsite recycling | T180: 0 | U180: 0.95 | V180: 0.05 | W180: 0 | X180: 0 | Y180: 434720 | Z180: 44.00445389
E181: Carbon steel reinforcing bar (rebar) (secondary production route – scrap), 7850 kg/m3 (Speciality Steel UK Limited (T/A Liberty Speciality Steels) - Rotherham Steel & Bar (member of UK CARES)) | F181: 108500 | G181: 10.98289301 | H181: - | I181: 0.0485 | J181: 5262.25 | K181: 106330 | L181: 0.98 | M181: 60 | N181: 0 | O181: 0 | P181: 0 | Q181: 0 | R181: No | S181: offsite recycling | T181: 0 | U181: 0.95 | V181: 0.05 | W181: 0 | X181: 0 | Y181: 103075 | Z181: 10.43374836
E182: Carbon steel reinforcing bar (rebar) (secondary production route – scrap), 7850 kg/m3 (Speciality Steel UK Limited (T/A Liberty Speciality Steels) - Rotherham Steel & Bar (member of UK CARES)) | F182: 132000 | G182: 13.36167628 | H182: - | I182: 0.0485 | J182: 6402 | K182: 129360 | L182: 0.98 | M182: 60 | N182: 0 | O182: 0 | P182: 0 | Q182: 0 | R182: No | S182: offsite recycling | T182: 0 | U182: 0.95 | V182: 0.05 | W182: 0 | X182: 0 | Y182: 125400 | Z182: 12.69359247
E183: Structural steel profiles, generic, 60% recycled content, I, H, U, L, and T sections, S235, S275 and S355 | F183: 6590.99 | G183: 0.6671717785 | H183: - | I183: 0.0329995949 | J183: 217.5 | K183: 3954.594 | L183: 0.6 | N183: 0 | O183: 0 | P183: 0 | Q183: 0 | R183: No | S183: offsite recycling | T183: 0 | U183: 0.95 | V183: 0.05 | W183: 0 | X183: 0 | Y183: 6261.4405 | Z183: 0.6338131896
E184: Ready-mix concrete, for precast products, 2340 kg/m3, Routine Mix (NS501F-891) (Humes, Sydney (Blacktown) plant) | F184: 107640 | G184: 10.89583966 | H184: - | I184: 0.04 | J184: 4305.6 | K184: 21528 | L184: 0.2 | N184: 0 | O184: 0 | P184: 0 | Q184: 0 | R184: No | S184: offsite recycling | T184: 0 | U184: 0.95 | V184: 0.05 | W184: 0 | X184: 0 | Y184: 102258 | Z184: 10.35104768
G185: 0 | H185: - | I185: 0 | J185: 0 | N185: 0 | O185: 0 | P185: 0 | Q185: 0 | V185: 1 | W185: 0 | X185: 0 | Y185: 0 | Z185: 0
G186: 0 | H186: - | I186: 0 | J186: 0 | N186: 0 | O186: 0 | P186: 0 | Q186: 0 | V186: 1 | W186: 0 | X186: 0 | Y186: 0 | Z186: 0
G187: 0 | H187: - | I187: 0 | J187: 0 | N187: 0 | O187: 0 | P187: 0 | Q187: 0 | V187: 1 | W187: 0 | X187: 0 | Y187: 0 | Z187: 0
G188: 0 | H188: - | I188: 0 | J188: 0 | N188: 0 | O188: 0 | P188: 0 | Q188: 0 | V188: 1 | W188: 0 | X188: 0 | Y188: 0 | Z188: 0
G189: 0 | H189: - | I189: 0 | J189: 0 | N189: 0 | O189: 0 | P189: 0 | Q189: 0 | V189: 1 | W189: 0 | X189: 0 | Y189: 0 | Z189: 0
G190: 0 | H190: - | I190: 0 | J190: 0 | N190: 0 | O190: 0 | P190: 0 | Q190: 0 | V190: 1 | W190: 0 | X190: 0 | Y190: 0 | Z190: 0
G191: =IF(AND(F191<>0,$D$31<>0),F191/$D$31,0) -> 0 | H191: - | I191: 0 | J191: 0 | N191: 0 | O191: 0 | P191: 0 | Q191: 0 | V191: 1 | W191: 0 | X191: 0 | Y191: 0 | Z191: 0
G192: =IF(AND(F192<>0,$D$31<>0),F192/$D$31,0) -> 0 | H192: - | I192: 0 | J192: 0 | N192: 0 | O192: 0 | P192: 0 | Q192: 0 | V192: 1 | W192: 0 | X192: 0 | Y192: 0 | Z192: 0
G193: =IF(AND(F193<>0,$D$31<>0),F193/$D$31,0) -> 0 | H193: - | I193: 0 | J193: 0 | N193: 0 | O193: 0 | P193: 0 | Q193: 0 | V193: 1 | W193: 0 | X193: 0 | Y193: 0 | Z193: 0
G194: =IF(AND(F194<>0,$D$31<>0),F194/$D$31,0) -> 0 | H194: - | I194: 0 | J194: 0 | N194: 0 | O194: 0 | P194: 0 | Q194: 0 | V194: 1 | W194: 0 | X194: 0 | Y194: 0 | Z194: 0
G195: 0 | H195: - | I195: 0 | J195: 0 | N195: 0 | O195: 0 | P195: 0 | Q195: 0 | V195: 1 | W195: 0 | X195: 0 | Y195: 0 | Z195: 0
G196: 0 | H196: - | I196: 0 | J196: 0 | N196: 0 | O196: 0 | P196: 0 | Q196: 0 | V196: 1 | W196: 0 | X196: 0 | Y196: 0 | Z196: 0
B197: 2.2 | C197: Superstructure: Upper Floors | E197: - | F197: =SUM(F198:F217) -> 6325880 | G197: =IF(AND(F197<>0,$D$31<>0),F197/$D$31,0) -> 640.3360664 | H197: =SUMPRODUCT((C176:D459="Superstructure: Upper Floors")*G176:G459) -> 1228.249823 | I197: - | J197: =SUM(J198:J217) -> 287261.26 | K197: - | L197: - | M197: - | N197: - | O197: =SUM(O198:O217) -> 0 | P197: - | Q197: =SUM(Q198:Q217) -> 0 | R197: - | S197: - | T197: =IF(W197<>0,W197/($F$197+$O$197),0) -> 0 | U197: =IF(Y197<>0,Y197/($F$197+$O$197),0) -> 0.95 | V197: 0.05 | W197: =SUM(W198:W217) -> 0 | X197: 0 | Y197: =SUM(Y198:Y217) -> 6009586 | Z197: 608.3192631
B198: 2.2 | C198: Superstructure: Upper Floors | E198: Ready-mix concrete, normal strength, generic, C32/40 (4600/5800 PSI) with CEM II/B-V, 30% GGBS content in cement (300 kg/m3; 18.7 lbs/ft3 total cement) (One Click LCA) | F198: 5808000 | G198: =IF(AND(F198<>0,$D$31<>0),F198/$D$31,0) -> 587.9137565 | H198: - | I198: 0.04 | J198: =I198*F198 -> 232320 | K198: 1161600 | L198: 0.2 | M198: 60 | N198: =IF(M198<>0,INT(59/M198),0) -> 0 | O198: =F198*N198 -> 0 | P198: 0 | Q198: =O198*P198 -> 0 | R198: No | S198: offsite recycling | T198: 0 | U198: 0.95 | V198: 0.05 | W198: 0 | X198: 0 | Y198: 5517600 | Z198: 558.5180686
E199: Wooden formwork, single sided with steel fixtures, 26 kg/m2 (One Click LCA) | F199: 251680 | G199: =IF(AND(F199<>0,$D$31<>0),F199/$D$31,0) -> 25.47626278 | H199: - | I199: 0.167 | J199: 42030.56 | K199: 25168 | L199: 0.1 | M199: 60 | N199: =IF(M199<>0,INT(59/M199),0) -> 0 | O199: =F199*N199 -> 0 | P199: 0 | Q199: =O199*P199 -> 0 | R199: No | S199: offsite recycling | T199: 0 | U199: 0.95 | V199: 0.05 | W199: 0 | X199: 0 | Y199: 239096 | Z199: 24.20244964
E200: Carbon steel reinforcing bar (rebar) (secondary production route – scrap), 7850 kg/m3 (Speciality Steel UK Limited (T/A Liberty Speciality Steels) - Rotherham Steel & Bar (member of UK CARES)) | F200: 266200 | G200: =IF(AND(F200<>0,$D$31<>0),F200/$D$31,0) -> 26.94604717 | H200: - | I200: 0.0485 | J200: 12910.7 | K200: 260876 | L200: 0.98 | M200: 60 | N200: 0 | O200: 0 | P200: 0 | Q200: 0 | R200: No | S200: offsite recycling | T200: 0 | U200: 0.95 | V200: 0.05 | W200: 0 | X200: 0 | Y200: 252890 | Z200: 25.59874481
G201: 0 | H201: - | I201: 0 | J201: 0 | N201: 0 | O201: 0 | P201: 0 | Q201: 0 | V201: 1 | W201: 0 | X201: 0 | Y201: 0 | Z201: 0
G202: 0 | H202: - | I202: 0 | J202: 0 | N202: 0 | O202: 0 | P202: 0 | Q202: 0 | V202: 1 | W202: 0 | X202: 0 | Y202: 0 | Z202: 0
G203: 0 | H203: - | I203: 0 | J203: 0 | N203: 0 | O203: 0 | P203: 0 | Q203: 0 | V203: 1 | W203: 0 | X203: 0 | Y203: 0 | Z203: 0
G204: 0 | H204: - | I204: 0 | J204: 0 | N204: 0 | O204: 0 | P204: 0 | Q204: 0 | V204: 1 | W204: 0 | X204: 0 | Y204: 0 | Z204: 0
G205: 0 | H205: - | I205: 0 | J205: 0 | N205: 0 | O205: 0 | P205: 0 | Q205: 0 | V205: 1 | W205: 0 | X205: 0 | Y205: 0 | Z205: 0
G206: 0 | H206: - | I206: 0 | J206: 0 | N206: 0 | O206: 0 | P206: 0 | Q206: 0 | V206: 1 | W206: 0 | X206: 0 | Y206: 0 | Z206: 0
G207: 0 | H207: - | I207: 0 | J207: 0 | N207: 0 | O207: 0 | P207: 0 | Q207: 0 | V207: 1 | W207: 0 | X207: 0 | Y207: 0 | Z207: 0
G208: 0 | H208: - | I208: 0 | J208: 0 | N208: 0 | O208: 0 | P208: 0 | Q208: 0 | V208: 1 | W208: 0 | X208: 0 | Y208: 0 | Z208: 0
G209: 0 | H209: - | I209: 0 | J209: 0 | N209: 0 | O209: 0 | P209: 0 | Q209: 0 | V209: 1 | W209: 0 | X209: 0 | Y209: 0 | Z209: 0
G210: 0 | H210: - | I210: 0 | J210: 0 | N210: 0 | O210: 0 | P210: 0 | Q210: 0 | V210: 1 | W210: 0 | X210: 0 | Y210: 0 | Z210: 0
... 272 more rows

Sheet Post-Construction Stage
A4: Post-Construction Stage - Circular Economy Statement
D6: Project Details
C7: Project name
C8: Planning application reference number (if applicable)
C9: Applicant
C10: London Borough
C11: Brief description of the project
C12: Author/s
C13: Date of assessment
C14: Number of Use Types
C15: Use Class / Type | D15: Floor Area by use type (m2)
C16: Use Class / Type 1 | D16: Use Class / Type 1 GIA
C17: Use Class / Type 2 | D17: Use Class / Type 2 GIA
C18: Use Class / Type 3 | D18: Use Class / Type 3 GIA
C19: Use Class / Type 4 | D19: Use Class / Type 4 GIA
C20: Use Class / Type 5 | D20: Use Class / Type 5 GIA
C21: Use Class / Type 6 | D21: Use Class / Type 6 GIA
C22: Use Class / Type 7 | D22: Use Class / Type 7 GIA
C23: Use Class / Type 8 | D23: Use Class / Type 8 GIA
C24: Use Class / Type 9 | D24: Use Class / Type 9 GIA
C25: Use Class / Type 10 | D25: Use Class / Type 10 GIA
C26: Use Class / Type 11 | D26: Use Class / Type 11 GIA
C27: Use Class / Type 12 | D27: Use Class / Type 12 GIA
C28: Use Class / Type 13 | D28: Use Class / Type 13 GIA
C29: Use Class / Type 14 | D29: Use Class / Type 14 GIA
C30: Use Class / Type 15 | D30: Use Class / Type 15 GIA
C31: Overall GIA (m2) | D31: =SUM(D16:D30) -> 0
B34: Bill of Materials
B35: Please click the + symbol to the left hand side of the Bill of Materials table to view or hide the input rows for each Building Element Category. The rows for substructure and frame have been unhidden to highlight this. A fixed number of rows has been provided for each Building Element Category based on a sub-set of typical WLCA submissions. Should the number of rows provided not be sufficient to allow input of all materials for a given Building Element Category, Applicants should prioritise the inclusion of the materials with the highest quantity.
C36: BUILDING ELEMENT CATEGORY - LEVEL 1 (based on the RICS New Rules of Measurement (NRM) classification system level 2 sub-elements https://www.rics.org/globalassets/rics-website/media/products/data-products/bcis-construction/bcis-elemental-standard-form-cost-analysis-4th-nrm-edition-2012.pdf) | E36: PRODUCT AND CONSTRUCTION STAGE (MODULE A) | M36: USE STAGE (MODULE B) | R36: END OF LIFE STAGE (MODULE C) | W36: BENEFITS BEYOND THE SYSTEM BOUNDARY (MODULE D)
C37: Building Element Category | E37: Material Type | F37: Material quantity (Module A) (kg) | G37: Material intensity (Module A) (kg/m2 GIA) | H37: Performance Indicator (LPG Appendix 1) | I37: Construction Waste Factor (Module A) | J37: Construction Waste (Module A) (kg) | K37: Recycled Content by mass (kg) | L37: Recycled Content by value (%) | M37: Expected Lifespan (years) | N37: Number of Replacements (over assumed 60-year period) | O37: Repair and Replacement quantities of materials (Module B) (kg) | P37: Construction Waste Factor (Module B) | Q37: Construction Waste (Module B) (kg) | R37: Design for Disassembly | S37: Assumed End of Life Scenario (Description) | T37: % Reusing | U37: % Recycling | V37: % Landfill | W37: Estimated reusable materials (kg) | X37: Estimated reusable materials intensity (kg/m2 GIA) | Y37: Estimated recyclable materials (kg) | Z37: Estimated recyclable materials intensity (kg/m2 GIA)
B38: 0.1 | C38: Demolition: Toxic/Hazardous/Contaminated Material Treatment | E38: - | F38: =SUM(F39:F53) -> 0 | G38: =IF(AND(F38<>0,$D$31<>0),F38/$D$31,0) -> 0 | H38: - | I38: - | J38: =SUM(J39:J53) -> 0 | K38: - | L38: - | M38: - | N38: - | O38: =SUM(O39:O53) -> 0 | P38: - | Q38: =SUM(Q39:Q53) -> 0 | R38: - | S38: - | T38: =IF(W38<>0,W38/($F$91+$O$91),0) -> 0 | U38: =IF(Y38<>0,Y38/($F$91+$O$91),0) -> 0 | V38: =1-T38-U38 -> 1 | W38: =SUM(W39:W53) -> 0 | X38: =IF(AND(W38<>0,$D$31<>0),W38/$D$31,0) -> 0 | Y38: =SUM(Y39:Y53) -> 0 | Z38: =IF(AND(Y38<>0,$D$31<>0),Y38/$D$31,0) -> 0
B39: 0.1 | C39: Demolition: Toxic/Hazardous/Contaminated Material Treatment | G39: =IF(AND(F39<>0,$D$31<>0),F39/$D$31,0) -> 0 | H39: - | I39: 0 | J39: =F39*I39 -> 0 | N39: =IF(M39<>0,INT(59/M39),0) -> 0 | O39: =F39*N39 -> 0 | P39: 0 | Q39: =O39*P39 -> 0 | T39: 0 | U39: 0 | V39: =1-T39-U39 -> 1 | W39: =T39*(F39+O39) -> 0 | X39: =IF(AND(W39<>0,$D$31<>0),W39/$D$31,0) -> 0 | Y39: =U39*(F39+O39) -> 0 | Z39: =IF(AND(Y39<>0,$D$31<>0),Y39/$D$31,0) -> 0
G40: =IF(AND(F40<>0,$D$31<>0),F40/$D$31,0) -> 0 | H40: - | I40: 0 | J40: =F40*I40 -> 0 | N40: =IF(M40<>0,INT(59/M40),0) -> 0 | O40: =F40*N40 -> 0 | P40: 0 | Q40: =O40*P40 -> 0 | T40: 0 | U40: 0 | V40: =1-T40-U40 -> 1 | W40: =T40*(F40+O40) -> 0 | X40: =IF(AND(W40<>0,$D$31<>0),W40/$D$31,0) -> 0 | Y40: =U40*(F40+O40) -> 0 | Z40: 0
G41: 0 | H41: - | I41: 0 | J41: 0 | N41: 0 | O41: 0 | P41: 0 | Q41: 0 | T41: 0 | U41: 0 | V41: 1 | W41: 0 | X41: 0 | Y41: 0 | Z41: 0
G42: 0 | H42: - | I42: 0 | J42: 0 | N42: 0 | O42: 0 | P42: 0 | Q42: 0 | T42: 0 | U42: 0 | V42: 1 | W42: 0 | X42: 0 | Y42: 0 | Z42: 0
G43: 0 | H43: - | I43: 0 | J43: 0 | N43: 0 | O43: 0 | P43: 0 | Q43: 0 | T43: 0 | U43: 0 | V43: 1 | W43: 0 | X43: 0 | Y43: 0 | Z43: 0
G44: 0 | H44: - | I44: 0 | J44: 0 | N44: 0 | O44: 0 | P44: 0 | Q44: 0 | T44: 0 | U44: 0 | V44: 1 | W44: 0 | X44: 0 | Y44: 0 | Z44: 0
G45: 0 | H45: - | I45: 0 | J45: 0 | N45: 0 | O45: 0 | P45: 0 | Q45: 0 | T45: 0 | U45: 0 | V45: 1 | W45: 0 | X45: 0 | Y45: 0 | Z45: 0
G46: 0 | H46: - | I46: 0 | J46: 0 | N46: 0 | O46: 0 | P46: 0 | Q46: 0 | T46: 0 | U46: 0 | V46: 1 | W46: 0 | X46: 0 | Y46: 0 | Z46: 0
G47: 0 | H47: - | I47: 0 | J47: 0 | N47: 0 | O47: 0 | P47: 0 | Q47: 0 | T47: 0 | U47: 0 | V47: 1 | W47: 0 | X47: 0 | Y47: 0 | Z47: 0
G48: 0 | H48: - | I48: 0 | J48: 0 | N48: 0 | O48: 0 | P48: 0 | Q48: 0 | T48: 0 | U48: 0 | V48: 1 | W48: 0 | X48: 0 | Y48: 0 | Z48: 0
G49: 0 | H49: - | I49: 0 | J49: 0 | N49: 0 | O49: 0 | P49: 0 | Q49: 0 | T49: 0 | U49: 0 | V49: 1 | W49: 0 | X49: 0 | Y49: 0 | Z49: 0
G50: 0 | H50: - | I50: 0 | J50: 0 | N50: 0 | O50: 0 | P50: 0 | Q50: 0 | T50: 0 | U50: 0 | V50: 1 | W50: 0 | X50: 0 | Y50: 0 | Z50: 0
G51: 0 | H51: - | I51: 0 | J51: 0 | N51: 0 | O51: 0 | P51: 0 | Q51: 0 | T51: 0 | U51: 0 | V51: 1 | W51: 0 | X51: 0 | Y51: 0 | Z51: 0
G52: 0 | H52: - | I52: 0 | J52: 0 | N52: 0 | O52: 0 | P52: 0 | Q52: 0 | T52: 0 | U52: 0 | V52: 1 | W52: 0 | X52: 0 | Y52: 0 | Z52: 0
G53: 0 | H53: - | I53: 0 | J53: 0 | N53: 0 | O53: 0 | P53: 0 | Q53: 0 | T53: 0 | U53: 0 | V53: 1 | W53: 0 | X53: 0 | Y53: 0 | Z53: 0
B54: 0.2 | C54: Major Demolition Works | E54: - | F54: =SUM(F55:F69) -> 0 | G54: =IF(AND(F54<>0,$D$31<>0),F54/$D$31,0) -> 0 | H54: - | I54: - | J54: =SUM(J55:J69) -> 0 | K54: - | L54: - | M54: - | N54: - | O54: =SUM(O55:O69) -> 0 | P54: - | Q54: =SUM(Q55:Q69) -> 0 | R54: - | S54: - | T54: =IF(W54<>0,W54/($F$107+$O$107),0) -> 0 | U54: =IF(Y54<>0,Y54/($F$107+$O$107),0) -> 0 | V54: =1-T54-U54 -> 1 | W54: =SUM(W55:W69) -> 0 | X54: 0 | Y54: =SUM(Y55:Y69) -> 0 | Z54: 0
B55: 0.2 | C55: Major Demolition Works | G55: =IF(AND(F55<>0,$D$31<>0),F55/$D$31,0) -> 0 | H55: - | I55: 0 | J55: =I55*F55 -> 0 | N55: =IF(M55<>0,INT(59/M55),0) -> 0 | O55: =F55*N55 -> 0 | P55: 0 | Q55: =O55*P55 -> 0 | T55: 0 | U55: 0 | V55: 1 | W55: 0 | X55: 0 | Y55: 0 | Z55: 0
G56: =IF(AND(F56<>0,$D$31<>0),F56/$D$31,0) -> 0 | H56: - | I56: 0 | J56: 0 | N56: =IF(M56<>0,INT(59/M56),0) -> 0 | O56: =F56*N56 -> 0 | P56: 0 | Q56: =O56*P56 -> 0 | T56: 0 | U56: 0 | V56: 1 | W56: 0 | X56: 0 | Y56: 0 | Z56: 0
G57: =IF(AND(F57<>0,$D$31<>0),F57/$D$31,0) -> 0 | H57: - | I57: 0 | J57: 0 | N57: 0 | O57: 0 | P57: 0 | Q57: 0 | T57: 0 | U57: 0 | V57: 1 | W57: 0 | X57: 0 | Y57: 0 | Z57: 0
G58: 0 | H58: - | I58: 0 | J58: 0 | N58: 0 | O58: 0 | P58: 0 | Q58: 0 | T58: 0 | U58: 0 | V58: 1 | W58: 0 | X58: 0 | Y58: 0 | Z58: 0
G59: 0 | H59: - | I59: 0 | J59: 0 | N59: 0 | O59: 0 | P59: 0 | Q59: 0 | T59: 0 | U59: 0 | V59: 1 | W59: 0 | X59: 0 | Y59: 0 | Z59: 0
G60: 0 | H60: - | I60: 0 | J60: 0 | N60: 0 | O60: 0 | P60: 0 | Q60: 0 | T60: 0 | U60: 0 | V60: 1 | W60: 0 | X60: 0 | Y60: 0 | Z60: 0
G61: 0 | H61: - | I61: 0 | J61: 0 | N61: 0 | O61: 0 | P61: 0 | Q61: 0 | T61: 0 | U61: 0 | V61: 1 | W61: 0 | X61: 0 | Y61: 0 | Z61: 0
G62: 0 | H62: - | I62: 0 | J62: 0 | N62: 0 | O62: 0 | P62: 0 | Q62: 0 | T62: 0 | U62: 0 | V62: 1 | W62: 0 | X62: 0 | Y62: 0 | Z62: 0
G63: 0 | H63: - | I63: 0 | J63: 0 | N63: 0 | O63: 0 | P63: 0 | Q63: 0 | T63: 0 | U63: 0 | V63: 1 | W63: 0 | X63: 0 | Y63: 0 | Z63: 0
G64: 0 | H64: - | I64: 0 | J64: 0 | N64: 0 | O64: 0 | P64: 0 | Q64: 0 | T64: 0 | U64: 0 | V64: 1 | W64: 0 | X64: 0 | Y64: 0 | Z64: 0
G65: 0 | H65: - | I65: 0 | J65: 0 | N65: 0 | O65: 0 | P65: 0 | Q65: 0 | T65: 0 | U65: 0 | V65: 1 | W65: 0 | X65: 0 | Y65: 0 | Z65: 0
G66: 0 | H66: - | I66: 0 | J66: 0 | N66: 0 | O66: 0 | P66: 0 | Q66: 0 | T66: 0 | U66: 0 | V66: 1 | W66: 0 | X66: 0 | Y66: 0 | Z66: 0
G67: 0 | H67: - | I67: 0 | J67: 0 | N67: 0 | O67: 0 | P67: 0 | Q67: 0 | T67: 0 | U67: 0 | V67: 1 | W67: 0 | X67: 0 | Y67: 0 | Z67: 0
G68: 0 | H68: - | I68: 0 | J68: 0 | N68: 0 | O68: 0 | P68: 0 | Q68: 0 | T68: 0 | U68: 0 | V68: 1 | W68: 0 | X68: 0 | Y68: 0 | Z68: 0
G69: 0 | H69: - | I69: 0 | J69: 0 | N69: 0 | O69: 0 | P69: 0 | Q69: 0 | T69: 0 | U69: 0 | V69: 1 | W69: 0 | X69: 0 | Y69: 0 | Z69: 0
B70: 0.3 | C70: Temporary Support to Adjacent Structures | E70: - | F70: =SUM(F71:F85) -> 0 | G70: =IF(AND(F70<>0,$D$31<>0),F70/$D$31,0) -> 0 | H70: - | I70: - | J70: =SUM(J71:J85) -> 0 | K70: - | L70: - | M70: - | N70: - | O70: =SUM(O71:O85) -> 0 | P70: - | Q70: =SUM(Q71:Q85) -> 0 | R70: - | S70: - | T70: =IF(W70<>0,W70/($F$123+$O$123),0) -> 0 | U70: =IF(Y70<>0,Y70/($F$123+$O$123),0) -> 0 | V70: 1 | W70: =SUM(W71:W85) -> 0 | X70: 0 | Y70: =SUM(Y71:Y85) -> 0 | Z70: 0
B71: 0.3 | C71: Temporary Support to Adjacent Structures | G71: =IF(AND(F71<>0,$D$31<>0),F71/$D$31,0) -> 0 | H71: - | I71: 0 | J71: =I71*F71 -> 0 | N71: =IF(M71<>0,INT(59/M71),0) -> 0 | O71: =F71*N71 -> 0 | P71: 0 | Q71: =O71*P71 -> 0 | T71: 0 | U71: 0 | V71: 1 | W71: 0 | X71: 0 | Y71: 0 | Z71: 0
G72: =IF(AND(F72<>0,$D$31<>0),F72/$D$31,0) -> 0 | H72: - | I72: 0 | J72: 0 | N72: =IF(M72<>0,INT(59/M72),0) -> 0 | O72: =F72*N72 -> 0 | P72: 0 | Q72: =O72*P72 -> 0 | T72: 0 | U72: 0 | V72: 1 | W72: 0 | X72: 0 | Y72: 0 | Z72: 0
G73: =IF(AND(F73<>0,$D$31<>0),F73/$D$31,0) -> 0 | H73: - | I73: 0 | J73: 0 | N73: 0 | O73: 0 | P73: 0 | Q73: 0 | T73: 0 | U73: 0 | V73: 1 | W73: 0 | X73: 0 | Y73: 0 | Z73: 0
G74: 0 | H74: - | I74: 0 | J74: 0 | N74: 0 | O74: 0 | P74: 0 | Q74: 0 | T74: 0 | U74: 0 | V74: 1 | W74: 0 | X74: 0 | Y74: 0 | Z74: 0
G75: 0 | H75: - | I75: 0 | J75: 0 | N75: 0 | O75: 0 | P75: 0 | Q75: 0 | T75: 0 | U75: 0 | V75: 1 | W75: 0 | X75: 0 | Y75: 0 | Z75: 0
G76: 0 | H76: - | I76: 0 | J76: 0 | N76: 0 | O76: 0 | P76: 0 | Q76: 0 | T76: 0 | U76: 0 | V76: 1 | W76: 0 | X76: 0 | Y76: 0 | Z76: 0
G77: 0 | H77: - | I77: 0 | J77: 0 | N77: 0 | O77: 0 | P77: 0 | Q77: 0 | T77: 0 | U77: 0 | V77: 1 | W77: 0 | X77: 0 | Y77: 0 | Z77: 0
G78: 0 | H78: - | I78: 0 | J78: 0 | N78: 0 | O78: 0 | P78: 0 | Q78: 0 | T78: 0 | U78: 0 | V78: 1 | W78: 0 | X78: 0 | Y78: 0 | Z78: 0
G79: 0 | H79: - | I79: 0 | J79: 0 | N79: 0 | O79: 0 | P79: 0 | Q79: 0 | T79: 0 | U79: 0 | V79: 1 | W79: 0 | X79: 0 | Y79: 0 | Z79: 0
G80: 0 | H80: - | I80: 0 | J80: 0 | N80: 0 | O80: 0 | P80: 0 | Q80: 0 | T80: 0 | U80: 0 | V80: 1 | W80: 0 | X80: 0 | Y80: 0 | Z80: 0
G81: 0 | H81: - | I81: 0 | J81: 0 | N81: 0 | O81: 0 | P81: 0 | Q81: 0 | T81: 0 | U81: 0 | V81: 1 | W81: 0 | X81: 0 | Y81: 0 | Z81: 0
G82: 0 | H82: - | I82: 0 | J82: 0 | N82: 0 | O82: 0 | P82: 0 | Q82: 0 | T82: 0 | U82: 0 | V82: 1 | W82: 0 | X82: 0 | Y82: 0 | Z82: 0
G83: 0 | H83: - | I83: 0 | J83: 0 | N83: 0 | O83: 0 | P83: 0 | Q83: 0 | T83: 0 | U83: 0 | V83: 1 | W83: 0 | X83: 0 | Y83: 0 | Z83: 0
G84: 0 | H84: - | I84: 0 | J84: 0 | N84: 0 | O84: 0 | P84: 0 | Q84: 0 | T84: 0 | U84: 0 | V84: 1 | W84: 0 | X84: 0 | Y84: 0 | Z84: 0
G85: 0 | H85: - | I85: 0 | J85: 0 | N85: 0 | O85: 0 | P85: 0 | Q85: 0 | T85: 0 | U85: 0 | V85: 1 | W85: 0 | X85: 0 | Y85: 0 | Z85: 0
B86: 0.4 | C86: Specialist Ground Works | E86: - | F86: =SUM(F87:F101) -> 0 | G86: =IF(AND(F86<>0,$D$31<>0),F86/$D$31,0) -> 0 | H86: - | I86: - | J86: =SUM(J87:J101) -> 0 | K86: - | L86: - | M86: - | N86: - | O86: =SUM(O87:O101) -> 0 | P86: - | Q86: =SUM(Q87:Q101) -> 0 | R86: - | S86: - | T86: =IF(W86<>0,W86/($F$139+$O$139),0) -> 0 | U86: =IF(Y86<>0,Y86/($F$139+$O$139),0) -> 0 | V86: 1 | W86: =SUM(W87:W101) -> 0 | X86: 0 | Y86: =SUM(Y87:Y101) -> 0 | Z86: 0
B87: 0.4 | C87: Specialist Ground Works | G87: =IF(AND(F87<>0,$D$31<>0),F87/$D$31,0) -> 0 | H87: - | I87: 0 | J87: =I87*F87 -> 0 | N87: =IF(M87<>0,INT(59/M87),0) -> 0 | O87: =F87*N87 -> 0 | P87: 0 | Q87: =O87*P87 -> 0 | T87: 0 | U87: 0 | V87: 1 | W87: 0 | X87: 0 | Y87: 0 | Z87: 0
G88: =IF(AND(F88<>0,$D$31<>0),F88/$D$31,0) -> 0 | H88: - | I88: 0 | J88: 0 | N88: =IF(M88<>0,INT(59/M88),0) -> 0 | O88: =F88*N88 -> 0 | P88: 0 | Q88: =O88*P88 -> 0 | T88: 0 | U88: 0 | V88: 1 | W88: 0 | X88: 0 | Y88: 0 | Z88: 0
G89: =IF(AND(F89<>0,$D$31<>0),F89/$D$31,0) -> 0 | H89: - | I89: 0 | J89: 0 | N89: 0 | O89: 0 | P89: 0 | Q89: 0 | T89: 0 | U89: 0 | V89: 1 | W89: 0 | X89: 0 | Y89: 0 | Z89: 0
G90: 0 | H90: - | I90: 0 | J90: 0 | N90: 0 | O90: 0 | P90: 0 | Q90: 0 | T90: 0 | U90: 0 | V90: 1 | W90: 0 | X90: 0 | Y90: 0 | Z90: 0
G91: 0 | H91: - | I91: 0 | J91: 0 | N91: 0 | O91: 0 | P91: 0 | Q91: 0 | T91: 0 | U91: 0 | V91: 1 | W91: 0 | X91: 0 | Y91: 0 | Z91: 0
G92: 0 | H92: - | I92: 0 | J92: 0 | N92: 0 | O92: 0 | P92: 0 | Q92: 0 | T92: 0 | U92: 0 | V92: 1 | W92: 0 | X92: 0 | Y92: 0 | Z92: 0
G93: 0 | H93: - | I93: 0 | J93: 0 | N93: 0 | O93: 0 | P93: 0 | Q93: 0 | T93: 0 | U93: 0 | V93: 1 | W93: 0 | X93: 0 | Y93: 0 | Z93: 0
G94: 0 | H94: - | I94: 0 | J94: 0 | N94: 0 | O94: 0 | P94: 0 | Q94: 0 | T94: 0 | U94: 0 | V94: 1 | W94: 0 | X94: 0 | Y94: 0 | Z94: 0
G95: 0 | H95: - | I95: 0 | J95: 0 | N95: 0 | O95: 0 | P95: 0 | Q95: 0 | T95: 0 | U95: 0 | V95: 1 | W95: 0 | X95: 0 | Y95: 0 | Z95: 0
G96: 0 | H96: - | I96: 0 | J96: 0 | N96: 0 | O96: 0 | P96: 0 | Q96: 0 | T96: 0 | U96: 0 | V96: 1 | W96: 0 | X96: 0 | Y96: 0 | Z96: 0
G97: 0 | H97: - | I97: 0 | J97: 0 | N97: 0 | O97: 0 | P97: 0 | Q97: 0 | T97: 0 | U97: 0 | V97: 1 | W97: 0 | X97: 0 | Y97: 0 | Z97: 0
G98: 0 | H98: - | I98: 0 | J98: 0 | N98: 0 | O98: 0 | P98: 0 | Q98: 0 | T98: 0 | U98: 0 | V98: 1 | W98: 0 | X98: 0 | Y98: 0 | Z98: 0
G99: 0 | H99: - | I99: 0 | J99: 0 | N99: 0 | O99: 0 | P99: 0 | Q99: 0 | T99: 0 | U99: 0 | V99: 1 | W99: 0 | X99: 0 | Y99: 0 | Z99: 0
G100: 0 | H100: - | I100: 0 | J100: 0 | N100: 0 | O100: 0 | P100: 0 | Q100: 0 | T100: 0 | U100: 0 | V100: 1 | W100: 0 | X100: 0 | Y100: 0 | Z100: 0
G101: 0 | H101: - | I101: 0 | J101: 0 | N101: 0 | O101: 0 | P101: 0 | Q101: 0 | T101: 0 | U101: 0 | V101: 1 | W101: 0 | X101: 0 | Y101: 0 | Z101: 0
B102: 1 | C102: Substructure | E102: - | F102: =SUM(F103:F122) -> 0 | G102: =IF(AND(F102<>0,$D$31<>0),F102/$D$31,0) -> 0 | H102: =SUMPRODUCT((C38:D401="Substructure")*G38:G401) -> 0 | I102: - | J102: =SUM(J103:J122) -> 0 | K102: - | L102: - | M102: - | N102: - | O102: =SUM(O103:O122) -> 0 | P102: - | Q102: =SUM(Q103:Q122) -> 0 | R102: - | S102: - | T102: =IF(W102<>0,W102/($F$155+$O$155),0) -> 0 | U102: =IF(Y102<>0,Y102/($F$155+$O$155),0) -> 0 | V102: 1 | W102: =SUM(W103:W122) -> 0 | X102: 0 | Y102: =SUM(Y103:Y122) -> 0 | Z102: 0
B103: 1 | C103: Substructure | G103: =IF(AND(F103<>0,$D$31<>0),F103/$D$31,0) -> 0 | H103: - | I103: 0 | J103: =I103*F103 -> 0 | N103: =IF(M103<>0,INT(59/M103),0) -> 0 | O103: =F103*N103 -> 0 | P103: 0 | Q103: =O103*P103 -> 0 | T103: 0 | U103: 0 | V103: 1 | W103: =T103*(F103+O103) -> 0 | X103: 0 | Y103: =U103*(F103+O103) -> 0 | Z103: 0
G104: =IF(AND(F104<>0,$D$31<>0),F104/$D$31,0) -> 0 | H104: - | I104: 0 | J104: 0 | N104: =IF(M104<>0,INT(59/M104),0) -> 0 | O104: =F104*N104 -> 0 | P104: 0 | Q104: =O104*P104 -> 0 | T104: 0 | U104: 0 | V104: =1-T104-U104 -> 1 | W104: 0 | X104: =IF(AND(W104<>0,$D$31<>0),W104/$D$31,0) -> 0 | Y104: 0 | Z104: 0
G105: =IF(AND(F105<>0,$D$31<>0),F105/$D$31,0) -> 0 | H105: - | I105: 0 | J105: 0 | N105: 0 | O105: 0 | P105: 0 | Q105: 0 | T105: 0 | U105: 0 | V105: 1 | W105: 0 | X105: 0 | Y105: 0 | Z105: 0
G106: 0 | H106: - | I106: 0 | J106: 0 | N106: 0 | O106: 0 | P106: 0 | Q106: 0 | T106: 0 | U106: 0 | V106: 1 | W106: 0 | X106: 0 | Y106: 0 | Z106: 0
G107: 0 | H107: - | I107: 0 | J107: 0 | N107: 0 | O107: 0 | P107: 0 | Q107: 0 | T107: 0 | U107: 0 | V107: 1 | W107: 0 | X107: 0 | Y107: 0 | Z107: 0
G108: 0 | H108: - | I108: 0 | J108: 0 | N108: 0 | O108: 0 | P108: 0 | Q108: 0 | T108: 0 | U108: 0 | V108: 1 | W108: 0 | X108: 0 | Y108: 0 | Z108: 0
G109: 0 | H109: - | I109: 0 | J109: 0 | N109: 0 | O109: 0 | P109: 0 | Q109: 0 | T109: 0 | U109: 0 | V109: 1 | W109: 0 | X109: 0 | Y109: 0 | Z109: 0
G110: 0 | H110: - | I110: 0 | J110: 0 | N110: 0 | O110: 0 | P110: 0 | Q110: 0 | T110: 0 | U110: 0 | V110: 1 | W110: 0 | X110: 0 | Y110: 0 | Z110: 0
G111: 0 | H111: - | I111: 0 | J111: 0 | N111: 0 | O111: 0 | P111: 0 | Q111: 0 | T111: 0 | U111: 0 | V111: 1 | W111: 0 | X111: 0 | Y111: 0 | Z111: 0
G112: 0 | H112: - | I112: 0 | J112: 0 | N112: 0 | O112: 0 | P112: 0 | Q112: 0 | T112: 0 | U112: 0 | V112: 1 | W112: 0 | X112: 0 | Y112: 0 | Z112: 0
G113: 0 | H113: - | I113: 0 | J113: 0 | N113: 0 | O113: 0 | P113: 0 | Q113: 0 | T113: 0 | U113: 0 | V113: 1 | W113: 0 | X113: 0 | Y113: 0 | Z113: 0
G114: 0 | H114: - | I114: 0 | J114: 0 | N114: 0 | O114: 0 | P114: 0 | Q114: 0 | T114: 0 | U114: 0 | V114: 1 | W114: 0 | X114: 0 | Y114: 0 | Z114: 0
G115: 0 | H115: - | I115: 0 | J115: 0 | N115: 0 | O115: 0 | P115: 0 | Q115: 0 | T115: 0 | U115: 0 | V115: 1 | W115: 0 | X115: 0 | Y115: 0 | Z115: 0
G116: 0 | H116: - | I116: 0 | J116: 0 | N116: 0 | O116: 0 | P116: 0 | Q116: 0 | T116: 0 | U116: 0 | V116: 1 | W116: 0 | X116: 0 | Y116: 0 | Z116: 0
G117: =IF(AND(F117<>0,$D$31<>0),F117/$D$31,0) -> 0 | H117: - | I117: 0 | J117: 0 | N117: 0 | O117: 0 | P117: 0 | Q117: 0 | T117: 0 | U117: 0 | V117: 1 | W117: 0 | X117: 0 | Y117: 0 | Z117: 0
G118: =IF(AND(F118<>0,$D$31<>0),F118/$D$31,0) -> 0 | H118: - | I118: 0 | J118: 0 | N118: 0 | O118: 0 | P118: 0 | Q118: 0 | T118: 0 | U118: 0 | V118: 1 | W118: 0 | X118: 0 | Y118: 0 | Z118: 0
G119: =IF(AND(F119<>0,$D$31<>0),F119/$D$31,0) -> 0 | H119: - | I119: 0 | J119: 0 | N119: 0 | O119: 0 | P119: 0 | Q119: 0 | T119: 0 | U119: 0 | V119: 1 | W119: 0 | X119: 0 | Y119: 0 | Z119: 0
G120: 0 | H120: - | I120: 0 | J120: 0 | N120: 0 | O120: 0 | P120: 0 | Q120: 0 | T120: 0 | U120: 0 | V120: 1 | W120: 0 | X120: 0 | Y120: 0 | Z120: 0
G121: 0 | H121: - | I121: 0 | J121: 0 | N121: 0 | O121: 0 | P121: 0 | Q121: 0 | T121: 0 | U121: 0 | V121: 1 | W121: 0 | X121: 0 | Y121: 0 | Z121: 0
G122: =IF(AND(F122<>0,$D$31<>0),F122/$D$31,0) -> 0 | H122: - | I122: 0 | J122: 0 | N122: =IF(M122<>0,INT(59/M122),0) -> 0 | O122: 0 | P122: 0 | Q122: 0 | T122: 0 | U122: 0 | V122: 1 | W122: 0 | X122: 0 | Y122: 0 | Z122: 0
B123: 2.1 | C123: Superstructure: Frame | E123: - | F123: =SUM(F124:F143) -> 0 | G123: =IF(AND(F123<>0,$D$31<>0),F123/$D$31,0) -> 0 | H123: =SUMPRODUCT((C38:D401="Superstructure: Frame")*G38:G401) -> 0 | I123: - | J123: =SUM(J124:J143) -> 0 | K123: - | L123: - | M123: - | N123: - | O123: =SUM(O124:O143) -> 0 | P123: - | Q123: =SUM(Q124:Q143) -> 0 | R123: - | S123: - | T123: =IF(W123<>0,W123/($F$176+$O$176),0) -> 0 | U123: =IF(Y123<>0,Y123/($F$176+$O$176),0) -> 0 | V123: 1 | W123: =SUM(W124:W143) -> 0 | X123: 0 | Y123: =SUM(Y124:Y143) -> 0 | Z123: 0
B124: 2.1 | C124: Superstructure: Frame | G124: =IF(AND(F124<>0,$D$31<>0),F124/$D$31,0) -> 0 | H124: - | I124: 0 | J124: =I124*F124 -> 0 | N124: =IF(M124<>0,INT(59/M124),0) -> 0 | O124: =F124*N124 -> 0 | P124: 0 | Q124: =O124*P124 -> 0 | T124: 0 | U124: 0 | V124: 1 | W124: =T124*(F124+O124) -> 0 | X124: 0 | Y124: =U124*(F124+O124) -> 0 | Z124: 0
G125: =IF(AND(F125<>0,$D$31<>0),F125/$D$31,0) -> 0 | H125: - | I125: 0 | J125: 0 | N125: =IF(M125<>0,INT(59/M125),0) -> 0 | O125: =F125*N125 -> 0 | P125: 0 | Q125: =O125*P125 -> 0 | T125: 0 | U125: 0 | V125: 1 | W125: 0 | X125: 0 | Y125: 0 | Z125: 0
G126: =IF(AND(F126<>0,$D$31<>0),F126/$D$31,0) -> 0 | H126: - | I126: 0 | J126: 0 | N126: 0 | O126: 0 | P126: 0 | Q126: 0 | T126: 0 | U126: 0 | V126: 1 | W126: 0 | X126: 0 | Y126: 0 | Z126: 0
G127: 0 | H127: - | I127: 0 | J127: 0 | N127: 0 | O127: 0 | P127: 0 | Q127: 0 | T127: 0 | U127: 0 | V127: 1 | W127: 0 | X127: 0 | Y127: 0 | Z127: 0
G128: 0 | H128: - | I128: 0 | J128: 0 | N128: 0 | O128: 0 | P128: 0 | Q128: 0 | T128: 0 | U128: 0 | V128: 1 | W128: 0 | X128: 0 | Y128: 0 | Z128: 0
G129: 0 | H129: - | I129: 0 | J129: 0 | N129: 0 | O129: 0 | P129: 0 | Q129: 0 | T129: 0 | U129: 0 | V129: 1 | W129: 0 | X129: 0 | Y129: 0 | Z129: 0
G130: 0 | H130: - | I130: 0 | J130: 0 | N130: 0 | O130: 0 | P130: 0 | Q130: 0 | T130: 0 | U130: 0 | V130: 1 | W130: 0 | X130: 0 | Y130: 0 | Z130: 0
G131: 0 | H131: - | I131: 0 | J131: 0 | N131: 0 | O131: 0 | P131: 0 | Q131: 0 | T131: 0 | U131: 0 | V131: 1 | W131: 0 | X131: 0 | Y131: 0 | Z131: 0
G132: 0 | H132: - | I132: 0 | J132: 0 | N132: 0 | O132: 0 | P132: 0 | Q132: 0 | T132: 0 | U132: 0 | V132: 1 | W132: 0 | X132: 0 | Y132: 0 | Z132: 0
G133: 0 | H133: - | I133: 0 | J133: 0 | N133: 0 | O133: 0 | P133: 0 | Q133: 0 | T133: 0 | U133: 0 | V133: 1 | W133: 0 | X133: 0 | Y133: 0 | Z133: 0
G134: 0 | H134: - | I134: 0 | J134: 0 | N134: 0 | O134: 0 | P134: 0 | Q134: 0 | T134: 0 | U134: 0 | V134: 1 | W134: 0 | X134: 0 | Y134: 0 | Z134: 0
G135: 0 | H135: - | I135: 0 | J135: 0 | N135: 0 | O135: 0 | P135: 0 | Q135: 0 | T135: 0 | U135: 0 | V135: 1 | W135: 0 | X135: 0 | Y135: 0 | Z135: 0
G136: 0 | H136: - | I136: 0 | J136: 0 | N136: 0 | O136: 0 | P136: 0 | Q136: 0 | T136: 0 | U136: 0 | V136: 1 | W136: 0 | X136: 0 | Y136: 0 | Z136: 0
G137: 0 | H137: - | I137: 0 | J137: 0 | N137: 0 | O137: 0 | P137: 0 | Q137: 0 | T137: 0 | U137: 0 | V137: 1 | W137: 0 | X137: 0 | Y137: 0 | Z137: 0
G138: =IF(AND(F138<>0,$D$31<>0),F138/$D$31,0) -> 0 | H138: - | I138: 0 | J138: 0 | N138: 0 | O138: 0 | P138: 0 | Q138: 0 | T138: 0 | U138: 0 | V138: 1 | W138: 0 | X138: 0 | Y138: 0 | Z138: 0
G139: =IF(AND(F139<>0,$D$31<>0),F139/$D$31,0) -> 0 | H139: - | I139: 0 | J139: 0 | N139: 0 | O139: 0 | P139: 0 | Q139: 0 | T139: 0 | U139: 0 | V139: 1 | W139: 0 | X139: 0 | Y139: 0 | Z139: 0
G140: =IF(AND(F140<>0,$D$31<>0),F140/$D$31,0) -> 0 | H140: - | I140: 0 | J140: 0 | N140: 0 | O140: 0 | P140: 0 | Q140: 0 | T140: 0 | U140: 0 | V140: 1 | W140: 0 | X140: 0 | Y140: 0 | Z140: 0
G141: =IF(AND(F141<>0,$D$31<>0),F141/$D$31,0) -> 0 | H141: - | I141: 0 | J141: 0 | N141: 0 | O141: 0 | P141: 0 | Q141: 0 | T141: 0 | U141: 0 | V141: 1 | W141: 0 | X141: 0 | Y141: 0 | Z141: 0
G142: 0 | H142: - | I142: 0 | J142: 0 | N142: 0 | O142: 0 | P142: 0 | Q142: 0 | T142: 0 | U142: 0 | V142: 1 | W142: 0 | X142: 0 | Y142: 0 | Z142: 0
G143: 0 | H143: - | I143: 0 | J143: 0 | N143: 0 | O143: 0 | P143: 0 | Q143: 0 | T143: 0 | U143: 0 | V143: 1 | W143: 0 | X143: 0 | Y143: 0 | Z143: 0
B144: 2.2 | C144: Superstructure: Upper Floors | E144: - | F144: =SUM(F145:F164) -> 0 | G144: =IF(AND(F144<>0,$D$31<>0),F144/$D$31,0) -> 0 | H144: =SUMPRODUCT((C123:D406="Superstructure: Upper Floors")*G123:G406) -> 0 | I144: - | J144: =SUM(J145:J164) -> 0 | K144: - | L144: - | M144: - | N144: - | O144: =SUM(O145:O164) -> 0 | P144: - | Q144: =SUM(Q145:Q164) -> 0 | R144: - | S144: - | T144: =IF(W144<>0,W144/($F$197+$O$197),0) -> 0 | U144: =IF(Y144<>0,Y144/($F$197+$O$197),0) -> 0 | V144: 1 | W144: =SUM(W145:W164) -> 0 | X144: 0 | Y144: =SUM(Y145:Y164) -> 0 | Z144: 0
B145: 2.2 | C145: Superstructure: Upper Floors | G145: =IF(AND(F145<>0,$D$31<>0),F145/$D$31,0) -> 0 | H145: - | I145: 0 | J145: =I145*F145 -> 0 | N145: =IF(M145<>0,INT(59/M145),0) -> 0 | O145: =F145*N145 -> 0 | P145: 0 | Q145: =O145*P145 -> 0 | T145: 0 | U145: 0 | V145: 1 | W145: =T145*(F145+O145) -> 0 | X145: 0 | Y145: =U145*(F145+O145) -> 0 | Z145: 0
G146: =IF(AND(F146<>0,$D$31<>0),F146/$D$31,0) -> 0 | H146: - | I146: 0 | J146: 0 | N146: =IF(M146<>0,INT(59/M146),0) -> 0 | O146: =F146*N146 -> 0 | P146: 0 | Q146: =O146*P146 -> 0 | T146: 0 | U146: 0 | V146: 1 | W146: 0 | X146: 0 | Y146: 0 | Z146: 0
G147: =IF(AND(F147<>0,$D$31<>0),F147/$D$31,0) -> 0 | H147: - | I147: 0 | J147: 0 | N147: 0 | O147: 0 | P147: 0 | Q147: 0 | T147: 0 | U147: 0 | V147: 1 | W147: 0 | X147: 0 | Y147: 0 | Z147: 0
G148: 0 | H148: - | I148: 0 | J148: 0 | N148: 0 | O148: 0 | P148: 0 | Q148: 0 | T148: 0 | U148: 0 | V148: 1 | W148: 0 | X148: 0 | Y148: 0 | Z148: 0
G149: 0 | H149: - | I149: 0 | J149: 0 | N149: 0 | O149: 0 | P149: 0 | Q149: 0 | T149: 0 | U149: 0 | V149: 1 | W149: 0 | X149: 0 | Y149: 0 | Z149: 0
G150: 0 | H150: - | I150: 0 | J150: 0 | N150: 0 | O150: 0 | P150: 0 | Q150: 0 | T150: 0 | U150: 0 | V150: 1 | W150: 0 | X150: 0 | Y150: 0 | Z150: 0
G151: 0 | H151: - | I151: 0 | J151: 0 | N151: 0 | O151: 0 | P151: 0 | Q151: 0 | T151: 0 | U151: 0 | V151: 1 | W151: 0 | X151: 0 | Y151: 0 | Z151: 0
G152: 0 | H152: - | I152: 0 | J152: 0 | N152: 0 | O152: 0 | P152: 0 | Q152: 0 | T152: 0 | U152: 0 | V152: 1 | W152: 0 | X152: 0 | Y152: 0 | Z152: 0
G153: 0 | H153: - | I153: 0 | J153: 0 | N153: 0 | O153: 0 | P153: 0 | Q153: 0 | T153: 0 | U153: 0 | V153: 1 | W153: 0 | X153: 0 | Y153: 0 | Z153: 0
G154: 0 | H154: - | I154: 0 | J154: 0 | N154: 0 | O154: 0 | P154: 0 | Q154: 0 | T154: 0 | U154: 0 | V154: 1 | W154: 0 | X154: 0 | Y154: 0 | Z154: 0
G155: 0 | H155: - | I155: 0 | J155: 0 | N155: 0 | O155: 0 | P155: 0 | Q155: 0 | T155: 0 | U155: 0 | V155: 1 | W155: 0 | X155: 0 | Y155: 0 | Z155: 0
G156: 0 | H156: - | I156: 0 | J156: 0 | N156: 0 | O156: 0 | P156: 0 | Q156: 0 | T156: 0 | U156: 0 | V156: 1 | W156: 0 | X156: 0 | Y156: 0 | Z156: 0
G157: 0 | H157: - | I157: 0 | J157: 0 | N157: 0 | O157: 0 | P157: 0 | Q157: 0 | T157: 0 | U157: 0 | V157: 1 | W157: 0 | X157: 0 | Y157: 0 | Z157: 0
G158: 0 | H158: - | I158: 0 | J158: 0 | N158: 0 | O158: 0 | P158: 0 | Q158: 0 | T158: 0 | U158: 0 | V158: 1 | W158: 0 | X158: 0 | Y158: 0 | Z158: 0
G159: =IF(AND(F159<>0,$D$31<>0),F159/$D$31,0) -> 0 | H159: - | I159: 0 | J159: 0 | N159: 0 | O159: 0 | P159: 0 | Q159: 0 | T159: 0 | U159: 0 | V159: 1 | W159: 0 | X159: 0 | Y159: 0 | Z159: 0
G160: =IF(AND(F160<>0,$D$31<>0),F160/$D$31,0) -> 0 | H160: - | I160: 0 | J160: 0 | N160: 0 | O160: 0 | P160: 0 | Q160: 0 | T160: 0 | U160: 0 | V160: 1 | W160: 0 | X160: 0 | Y160: 0 | Z160: 0
G161: =IF(AND(F161<>0,$D$31<>0),F161/$D$31,0) -> 0 | H161: - | I161: 0 | J161: 0 | N161: 0 | O161: 0 | P161: 0 | Q161: 0 | T161: 0 | U161: 0 | V161: 1 | W161: 0 | X161: 0 | Y161: 0 | Z161: 0
G162: =IF(AND(F162<>0,$D$31<>0),F162/$D$31,0) -> 0 | H162: - | I162: 0 | J162: 0 | N162: 0 | O162: 0 | P162: 0 | Q162: 0 | T162: 0 | U162: 0 | V162: 1 | W162: 0 | X162: 0 | Y162: 0 | Z162: 0
G163: 0 | H163: - | I163: 0 | J163: 0 | N163: 0 | O163: 0 | P163: 0 | Q163: 0 | T163: 0 | U163: 0 | V163: 1 | W163: 0 | X163: 0 | Y163: 0 | Z163: 0
G164: 0 | H164: - | I164: 0 | J164: =I164*F164 -> 0 | N164: 0 | O164: 0 | P164: 0 | Q164: 0 | T164: 0 | U164: 0 | V164: 1 | W164: 0 | X164: 0 | Y164: 0 | Z164: 0
B165: 2.3 | C165: Superstructure: Roof | E165: - | F165: =SUM(F166:F185) -> 0 | G165: =IF(AND(F165<>0,$D$31<>0),F165/$D$31,0) -> 0 | H165: =SUMPRODUCT((C38:D401="Superstructure: Roof")*G38:G401) -> 0 | I165: - | J165: =SUM(J166:J185) -> 0 | K165: - | L165: - | M165: - | N165: - | O165: =SUM(O166:O185) -> 0 | P165: - | Q165: =SUM(Q166:Q185) -> 0 | R165: - | S165: - | T165: =IF(W165<>0,W165/($F$218+$O$218),0) -> 0 | U165: =IF(Y165<>0,Y165/($F$218+$O$218),0) -> 0 | V165: 1 | W165: =SUM(W166:W185) -> 0 | X165: 0 | Y165: =SUM(Y166:Y185) -> 0 | Z165: 0
B166: 2.3 | C166: Superstructure: Roof | G166: =IF(AND(F166<>0,$D$31<>0),F166/$D$31,0) -> 0 | H166: - | I166: 0 | J166: =I166*F166 -> 0 | N166: =IF(M166<>0,INT(59/M166),0) -> 0 | O166: =F166*N166 -> 0 | P166: 0 | Q166: =O166*P166 -> 0 | T166: 0 | U166: 0 | V166: 1 | W166: =T166*(F166+O166) -> 0 | X166: 0 | Y166: =U166*(F166+O166) -> 0 | Z166: 0
G167: =IF(AND(F167<>0,$D$31<>0),F167/$D$31,0) -> 0 | H167: - | I167: 0 | J167: 0 | N167: =IF(M167<>0,INT(59/M167),0) -> 0 | O167: =F167*N167 -> 0 | P167: 0 | Q167: =O167*P167 -> 0 | T167: 0 | U167: 0 | V167: 1 | W167: 0 | X167: 0 | Y167: 0 | Z167: 0
G168: =IF(AND(F168<>0,$D$31<>0),F168/$D$31,0) -> 0 | H168: - | I168: 0 | J168: 0 | N168: 0 | O168: 0 | P168: 0 | Q168: 0 | T168: 0 | U168: 0 | V168: =1-T168-U168 -> 1 | W168: 0 | X168: =IF(AND(W168<>0,$D$31<>0),W168/$D$31,0) -> 0 | Y168: 0 | Z168: 0
G169: 0 | H169: - | I169: 0 | J169: 0 | N169: 0 | O169: 0 | P169: 0 | Q169: 0 | T169: 0 | U169: 0 | V169: 1 | W169: 0 | X169: 0 | Y169: 0 | Z169: 0
G170: 0 | H170: - | I170: 0 | J170: 0 | N170: 0 | O170: 0 | P170: 0 | Q170: 0 | T170: 0 | U170: 0 | V170: 1 | W170: 0 | X170: 0 | Y170: 0 | Z170: 0
G171: 0 | H171: - | I171: 0 | J171: 0 | N171: 0 | O171: 0 | P171: 0 | Q171: 0 | T171: 0 | U171: 0 | V171: 1 | W171: 0 | X171: 0 | Y171: 0 | Z171: 0
G172: 0 | H172: - | I172: 0 | J172: 0 | N172: 0 | O172: 0 | P172: 0 | Q172: 0 | T172: 0 | U172: 0 | V172: 1 | W172: 0 | X172: 0 | Y172: 0 | Z172: 0
G173: 0 | H173: - | I173: 0 | J173: 0 | N173: 0 | O173: 0 | P173: 0 | Q173: 0 | T173: 0 | U173: 0 | V173: 1 | W173: 0 | X173: 0 | Y173: 0 | Z173: 0
G174: 0 | H174: - | I174: 0 | J174: 0 | N174: 0 | O174: 0 | P174: 0 | Q174: 0 | T174: 0 | U174: 0 | V174: 1 | W174: 0 | X174: 0 | Y174: 0 | Z174: 0
G175: 0 | H175: - | I175: 0 | J175: 0 | N175: 0 | O175: 0 | P175: 0 | Q175: 0 | T175: 0 | U175: 0 | V175: 1 | W175: 0 | X175: 0 | Y175: 0 | Z175: 0
G176: 0 | H176: - | I176: 0 | J176: 0 | N176: 0 | O176: 0 | P176: 0 | Q176: 0 | T176: 0 | U176: 0 | V176: 1 | W176: 0 | X176: 0 | Y176: 0 | Z176: 0
G177: 0 | H177: - | I177: 0 | J177: 0 | N177: 0 | O177: 0 | P177: 0 | Q177: 0 | T177: 0 | U177: 0 | V177: 1 | W177: 0 | X177: 0 | Y177: 0 | Z177: 0
G178: 0 | H178: - | I178: 0 | J178: 0 | N178: 0 | O178: 0 | P178: 0 | Q178: 0 | T178: 0 | U178: 0 | V178: 1 | W178: 0 | X178: 0 | Y178: 0 | Z178: 0
G179: 0 | H179: - | I179: 0 | J179: 0 | N179: 0 | O179: 0 | P179: 0 | Q179: 0 | T179: 0 | U179: 0 | V179: 1 | W179: 0 | X179: 0 | Y179: 0 | Z179: 0
G180: =IF(AND(F180<>0,$D$31<>0),F180/$D$31,0) -> 0 | H180: - | I180: 0 | J180: 0 | N180: 0 | O180: 0 | P180: 0 | Q180: 0 | T180: 0 | U180: 0 | V180: 1 | W180: 0 | X180: 0 | Y180: 0 | Z180: 0
G181: =IF(AND(F181<>0,$D$31<>0),F181/$D$31,0) -> 0 | H181: - | I181: 0 | J181: 0 | N181: 0 | O181: 0 | P181: 0 | Q181: 0 | T181: 0 | U181: 0 | V181: 1 | W181: 0 | X181: 0 | Y181: 0 | Z181: 0
G182: =IF(AND(F182<>0,$D$31<>0),F182/$D$31,0) -> 0 | H182: - | I182: 0 | J182: 0 | N182: 0 | O182: 0 | P182: 0 | Q182: 0 | T182: 0 | U182: 0 | V182: 1 | W182: 0 | X182: 0 | Y182: 0 | Z182: 0
G183: =IF(AND(F183<>0,$D$31<>0),F183/$D$31,0) -> 0 | H183: - | I183: 0 | J183: 0 | N183: 0 | O183: 0 | P183: 0 | Q183: 0 | T183: 0 | U183: 0 | V183: 1 | W183: 0 | X183: 0 | Y183: 0 | Z183: 0
G184: 0 | H184: - | I184: 0 | J184: 0 | N184: 0 | O184: 0 | P184: 0 | Q184: 0 | T184: 0 | U184: 0 | V184: 1 | W184: 0 | X184: 0 | Y184: 0 | Z184: 0
G185: 0 | H185: - | I185: 0 | J185: 0 | N185: 0 | O185: 0 | P185: 0 | Q185: 0 | T185: 0 | U185: 0 | V185: 1 | W185: 0 | X185: 0 | Y185: 0 | Z185: 0
B186: 2.4 | C186: Superstructure: Stairs and Ramps | E186: - | F186: =SUM(F187:F201) -> 0 | G186: =IF(AND(F186<>0,$D$31<>0),F186/$D$31,0) -> 0 | H186: - | I186: - | J186: =SUM(J187:J201) -> 0 | K186: - | L186: - | M186: - | N186: - | O186: =SUM(O187:O201) -> 0 | P186: - | Q186: =SUM(Q187:Q201) -> 0 | R186: - | S186: - | T186: =IF(W186<>0,W186/($F$239+$O$239),0) -> 0 | U186: =IF(Y186<>0,Y186/($F$239+$O$239),0) -> 0 | V186: 1 | W186: =SUM(W187:W201) -> 0 | X186: 0 | Y186: =SUM(Y187:Y201) -> 0 | Z186: 0
B187: 2.4 | C187: Superstructure: Stairs and Ramps | G187: =IF(AND(F187<>0,$D$31<>0),F187/$D$31,0) -> 0 | H187: - | I187: 0 | J187: =I187*F187 -> 0 | N187: =IF(M187<>0,INT(59/M187),0) -> 0 | O187: =F187*N187 -> 0 | P187: 0 | Q187: =O187*P187 -> 0 | T187: 0 | U187: 0 | V187: 1 | W187: 0 | X187: 0 | Y187: 0 | Z187: 0
G188: =IF(AND(F188<>0,$D$31<>0),F188/$D$31,0) -> 0 | H188: - | I188: 0 | J188: 0 | N188: =IF(M188<>0,INT(59/M188),0) -> 0 | O188: =F188*N188 -> 0 | P188: 0 | Q188: =O188*P188 -> 0 | T188: 0 | U188: 0 | V188: 1 | W188: 0 | X188: 0 | Y188: 0 | Z188: 0
G189: =IF(AND(F189<>0,$D$31<>0),F189/$D$31,0) -> 0 | H189: - | I189: 0 | J189: 0 | N189: 0 | O189: 0 | P189: 0 | Q189: 0 | T189: 0 | U189: 0 | V189: 1 | W189: 0 | X189: 0 | Y189: 0 | Z189: 0
G190: 0 | H190: - | I190: 0 | J190: 0 | N190: 0 | O190: 0 | P190: 0 | Q190: 0 | T190: 0 | U190: 0 | V190: 1 | W190: 0 | X190: 0 | Y190: 0 | Z190: 0
G191: 0 | H191: - | I191: 0 | J191: 0 | N191: 0 | O191: 0 | P191: 0 | Q191: 0 | T191: 0 | U191: 0 | V191: 1 | W191: 0 | X191: 0 | Y191: 0 | Z191: 0
G192: 0 | H192: - | I192: 0 | J192: 0 | N192: 0 | O192: 0 | P192: 0 | Q192: 0 | T192: 0 | U192: 0 | V192: 1 | W192: 0 | X192: 0 | Y192: 0 | Z192: 0
G193: 0 | H193: - | I193: 0 | J193: 0 | N193: 0 | O193: 0 | P193: 0 | Q193: 0 | T193: 0 | U193: 0 | V193: 1 | W193: 0 | X193: 0 | Y193: 0 | Z193: 0
G194: 0 | H194: - | I194: 0 | J194: 0 | N194: 0 | O194: 0 | P194: 0 | Q194: 0 | T194: 0 | U194: 0 | V194: 1 | W194: 0 | X194: 0 | Y194: 0 | Z194: 0
G195: 0 | H195: - | I195: 0 | J195: 0 | N195: 0 | O195: 0 | P195: 0 | Q195: 0 | T195: 0 | U195: 0 | V195: 1 | W195: 0 | X195: 0 | Y195: 0 | Z195: 0
G196: 0 | H196: - | I196: 0 | J196: 0 | N196: 0 | O196: 0 | P196: 0 | Q196: 0 | T196: 0 | U196: 0 | V196: 1 | W196: 0 | X196: 0 | Y196: 0 | Z196: 0
G197: 0 | H197: - | I197: 0 | J197: 0 | N197: 0 | O197: 0 | P197: 0 | Q197: 0 | T197: 0 | U197: 0 | V197: 1 | W197: 0 | X197: 0 | Y197: 0 | Z197: 0
G198: 0 | H198: - | I198: 0 | J198: 0 | N198: 0 | O198: 0 | P198: 0 | Q198: 0 | T198: 0 | U198: 0 | V198: 1 | W198: 0 | X198: 0 | Y198: 0 | Z198: 0
G199: 0 | H199: - | I199: 0 | J199: 0 | N199: 0 | O199: 0 | P199: 0 | Q199: 0 | T199: 0 | U199: 0 | V199: 1 | W199: 0 | X199: 0 | Y199: 0 | Z199: 0
G200: 0 | H200: - | I200: 0 | J200: 0 | N200: 0 | O200: 0 | P200: 0 | Q200: 0 | T200: 0 | U200: 0 | V200: 1 | W200: 0 | X200: 0 | Y200: 0 | Z200: 0
G201: =IF(AND(F201<>0,$D$31<>0),F201/$D$31,0) -> 0 | H201: - | I201: 0 | J201: 0 | N201: 0 | O201: 0 | P201: 0 | Q201: 0 | T201: 0 | U201: 0 | V201: 1 | W201: 0 | X201: 0 | Y201: 0 | Z201: 0
B202: 2.5 | C202: Superstructure: External Walls | E202: - | F202: =SUM(F203:F222) -> 0 | G202: =IF(AND(F202<>0,$D$31<>0),F202/$D$31,0) -> 0 | H202: =SUMPRODUCT((C38:D401="Superstructure: External Walls")*G38:G401)+SUMPRODUCT((C38:D401="Superstructure: Windows and External Doors")*G38:G401) -> 0 | I202: - | J202: =SUM(J203:J222) -> 0 | K202: - | L202: - | M202: - | N202: - | O202: =SUM(O203:O222) -> 0 | P202: - | Q202: =SUM(Q203:Q222) -> 0 | R202: - | S202: - | T202: =IF(W202<>0,W202/($F$255+$O$255),0) -> 0 | U202: =IF(Y202<>0,Y202/($F$255+$O$255),0) -> 0 | V202: 1 | W202: =SUM(W203:W222) -> 0 | X202: 0 | Y202: =SUM(Y203:Y222) -> 0 | Z202: 0
B203: 2.5 | C203: Superstructure: External Walls | G203: =IF(AND(F203<>0,$D$31<>0),F203/$D$31,0) -> 0 | H203: - | I203: 0 | J203: =I203*F203 -> 0 | N203: =IF(M203<>0,INT(59/M203),0) -> 0 | O203: =F203*N203 -> 0 | P203: 0 | Q203: =O203*P203 -> 0 | T203: 0 | U203: 0 | V203: 1 | W203: =T203*(F203+O203) -> 0 | X203: 0 | Y203: =U203*(F203+O203) -> 0 | Z203: 0
G204: =IF(AND(F204<>0,$D$31<>0),F204/$D$31,0) -> 0 | H204: - | I204: 0 | J204: 0 | N204: =IF(M204<>0,INT(59/M204),0) -> 0 | O204: =F204*N204 -> 0 | P204: 0 | Q204: =O204*P204 -> 0 | T204: 0 | U204: 0 | V204: 1 | W204: 0 | X204: 0 | Y204: 0 | Z204: 0
G205: =IF(AND(F205<>0,$D$31<>0),F205/$D$31,0) -> 0 | H205: - | I205: 0 | J205: 0 | N205: 0 | O205: 0 | P205: 0 | Q205: 0 | T205: 0 | U205: 0 | V205: 1 | W205: 0 | X205: 0 | Y205: 0 | Z205: 0
G206: 0 | H206: - | I206: 0 | J206: 0 | N206: 0 | O206: 0 | P206: 0 | Q206: 0 | T206: 0 | U206: 0 | V206: 1 | W206: 0 | X206: 0 | Y206: 0 | Z206: 0
... 229 more rows

Sheet Version Control
A1: Greater London Authority - Circular Economy Statement template
A3: Version Control
A4: Current Issue | B4: 1.1
A5: Date | B5: 2023-06-01
A6: Author | B6: Greater London Authority
A8: Update Version | B8: 1.1
A9: Update Location | B9: Description of changes made to GLA Circular Economy Statement Template
A10: Outline Application Stage / Detailed Application Stage (Cell B70) | B10: Update to wording to reference the Circular Economy Principles by Building Layer table.
A11: Outline Application Stage / Detailed Application Stage (Cell B88) Post-Construction Stage (B35) | B11: Added wording to clarify the approach should the number of entries exceed the number of rows provided.
A12: Outline Application Stage / Detailed Application Stage / Post-Construction Stage (Bill of Mateirals, Column I and P) | B12: Where it is anticipated this figure will come directly from OneClick, eTool LCA or other similar software, the Construction Waste Factor in Columns I and P is now input at a percentage for clarity and consistency.
A13: Outline Application Stage / Detailed Application Stage (Bill of Materials, Columns K and L) | B13: Cell colour has been amended to show that these are pioneering considerations.
A14: Outline Application Stage / Detailed Application Stage / Post-Construction Stage (Bill of Materials, Column N) | B14: Calculation has been adjusted so that components with an Expected Lifespan of 60-years are not counted as being replaced over the assumed 60-year lifecycle period.
A15: Outline Application Stage / Detailed Application Stage / Post-Construction Stage (Bill of Materials, Column O) | B15: Calculation has been updated to show correct multiplication of Material Quantity by Number of Replacements.
A16: Outline Application Stage / Detailed Application Stage / Post-Construction Stage (Bill of Materials, Column Q) | B16: Calculation has been updated to show correct multiplication of Repair and Replacement quantities of materials by Construction Waste Factor.
A17: Detailed Application Stage (Cells E470, E471 and E477) / Post-Construction Stage (Cell E417, E418 and E424) | B17: Calculations in cells updated in line with the calculations in the Outline Application Stage tab.
A18: Outline Application Stage / Detailed Application Stage (Cell Q455) / Post-Construction Stage (Cell Q402) | B18: Calculation has been updated to show correct total for Construction Waste (Module B).
A19: Outline Application Stage / Detailed Application Stage (Cell W455, X455, Y455 and Z455) / Post-Construction Stage (Cell W402, X402, Y402 and Z402) | B19: Calculation has been updated to show correct total for Benefits Beyond the System Boundary (Module D).
A20: Pre-App Stage / Outline Application Stage / Detailed Application Stage / Post-Construction Stage | B20: Accessibility updates across all tabs wherever possible to provide alt text, address low contrast text/backgrounds and merged cells.

Sheet Drop- down list (hidden)
A1: Number of Use Types | B1: Yes/No | C1: Layers | D1: Building element category reference | E1: Building element category | F1: Other
A2: 1 | B2: Yes | C2: Site | D2: 0.1 | E2: Demolition: Toxic/Hazardous/Contaminated Material Treatment | F2: It is accepted that the Reserved Matters Reporting will be conditioned
A3: 2 | B3: No | C3: Substructure | D3: 0.2 | E3: Major Demolition Works | F3: It is accepted that the Post Construction Reporting will be conditioned
A4: 3 | B4: Yes, in whole | C4: Super- Structure | D4: 0.3 | E4: Temporary Support to Adjacent Structures
A5: 4 | B5: Yes, in part | C5: Shell/ Skin | D5: 0.4 | E5: Specialist Ground Works
A6: 5 | B6: No | C6: Services | D6: 1 | E6: Substructure
A7: 6 | C7: Space | D7: 2.1 | E7: Superstructure: Frame
A8: 7 | C8: Stuff | D8: 2.2 | E8: Superstructure: Upper Floors
A9: 8 | C9: Construction Stuff | D9: 2.3 | E9: Superstructure: Roof
A10: 9 | D10: 2.4 | E10: Superstructure: Stairs and Ramps
A11: 10 | C11: Yes | D11: 2.5 | E11: Superstructure: External Walls
A12: 11 | C12: No | D12: 2.6 | E12: Superstructure: Windows and External Doors
A13: 12 | D13: 2.7 | E13: Superstructure: Internal Walls and Partitions
A14: 13 | D14: 2.8 | E14: Superstructure: Internal Doors
A15: 14 | D15: 3 | E15: Finishes
A16: 15 | D16: 4 | E16: Fittings, furnishings & equipment (FFE)
D17: 5 | E17: Services (MEP)
D18: 6 | E18: Prefabricated Buildings and Building Units
D19: 7 | E19: Work to Existing Building
D20: 8 | E20: External works
